Cogmind - Beta 15 @@@ ROGUE MODE // 2025.08.06 @ 14:13:20 Player: saltine Result: Destroyed by Architect with Modified Sigix Sheargun Performance ------------- Evolutions (9) 4500 Regions Visited (32) 6400 Robots Destroyed (1043) 5215 Value Destroyed (68428) 68428 Prototype IDs (377) 7540 Alien Tech Used (5) 1000 Bonus (91851) 91851 TOTAL SCORE: 184934 Bonus ------- Triggered High Security 1500 High Alert Combat Kills 47601 Follower Combat Kills 798 Met Data Miner 300 Met Warlord at Base 500 MAIN.C Attacked Warlord 500 Warlord Defense Kills 1684 Scanned by Researcher 500 Destroyed Superfortress 15000 Destroyed MAIN.C Guards 500 Met MAIN.C 5000 Destroyed MAIN.C Shell 5000 Destroyed MAIN.C 10000 Met Warlord at Command 2000 Met Architect 300 Destroyed A8 300 Destroyed A6 400 Destroyed A5 500 Friendly Fire -532 Cogmind --------- Core Integrity 0/1600 Matter 208/300 Energy 1629/1740 System Corruption 3% Temperature Cool (0) Movement Treading (81) Location -1/Access_0 Parts ------- > --- POWER (3) -------- Multi-Quantum Reactor > --- PROPULSION (6) --- Treaded Siege-Biometal Exoskeleton > --- UTILITY (12) ----- Armored Scrap Engine Experimental Cooling System Concept Thermoelectric Network Concept Antigrav Storage Unit Experimental Optical Array Experimental Core Analyzer Advanced Weapon Cycler Advanced Powered Armor Heavy Regenerative Plating Experimental Force Field > --- WEAPON (4) ------- Shotgun Kinetic Neutralizer Con/C > --- INVENTORY (25) --- Advanced Heavy Siege Treads Diametric Drive Experimental Heat Sink Experimental Cooling System Huge Storage Unit Concept Chromion Battery (800) Concept Chromion Battery (800) Concept NT7 Matterbank (72) Long-range IFF Parser Precision Energy Filter Quantum Capacitor Concept RG22 Armor Concept RG22 Armor Graphene Brace AEGIS Remote Shield AEGIS Remote Shield Advanced Dynamic Insulation System Concept Matter Streamer Long-range Phase Cannon Long-range Phase Cannon Long-range Phase Cannon Long-range Phase Cannon Concept Smart ZDS Peak State ------------ > --- POWER ------------ Multi-Quantum Reactor > --- PROPULSION ------- Treaded Siege-Biometal Exoskeleton > --- UTILITY ---------- Armored Scrap Engine Experimental Cooling System Concept Thermoelectric Network Concept Antigrav Storage Unit Concept NT7 Matterbank Experimental Core Analyzer Experimental Kinecellerator Experimental Weapon Cycler Concept Cloak Mesh Concept RG22 Armor Graphene Brace > --- WEAPON ----------- Concept Smart ZDS Shotgun Kinetic Neutralizer Con/C > --- INVENTORY -------- Concept Thermoelectric Network Concept Chromion Battery Concept Chromion Battery Long-range IFF Parser Concept Weapon Articulator Launcher Loader Concept RG22 Armor Concept RG22 Armor Experimental EM Shield Advanced Force Field Advanced Force Field Concept Antimissile System Advanced Dynamic Insulation System Concept Matter Streamer Crosscalibrator Transdimensional Reconstructor Concept XC Strikerail Concept XC Strikerail Enhanced Gamma Bomb Array Enhanced Gamma Bomb Array Concept Tiamat Rocket Array Concept Smart ZDS [Rating: 283] Favorites ----------- Power Constructs Engine Light Ion Engine Power Core Meta Core Reactor Constructs Propulsion Constructs Treads Constructs Leg Myomer Leg Wheel Compact Wheel Hover Unit Cooled Antigrav System Flight Unit Cooled Nuclear Pulse Thruster Utility Armored Scrap Engine Device Armored Scrap Engine Storage Huge Storage Unit Processor Experimental Core Analyzer Hackware Hacking Suite Protection Concept RG22 Armor Artifact Phase Armor Weapon Constructs Energy Gun Precision Beam Rifle Energy Cannon Constructs Ballistic Gun Enhanced Autogun Ballistic Cannon Hypervelocity Mass Driver Launcher Concept Smart ZDS Special Weapon Multitool Slashing Weapon Concept Deflector Sword Build | -11 -10 -10 -8 -8 -8 -6 -6 -6 -6 -6 -6 -5 -5 -5 -5 -5 -4 -4 -4 -4 -4 -4 -4 -3 -3 -3 -2 -2 -2 -1 -1 -1 ------- Run | Yrd Mat Sub Mat Sto Rec Fac Was Fac Low Low Dat Pro Fac Upp Upp Zhi Pro Fac Was Fac Upp Upp War Pro Res Qua Res Tes Frg Acc Com Ac0 Slots Evolved 18 | . . . 4 . . 4 . . . . . . 2 . . . . 2 . . . . . . 2 . 2 . . 2 . . Power 2 | . . . . . . 1 . . . . . . . . . . . 1 . . . . . . . . . . . . . . Propulsion 4 | . . . 1 . . 2 . . . . . . . . . . . 1 . . . . . . . . . . . . . . Utility 10 | . . . 2 . . 1 . . . . . . 1 . . . . . . . . . . . 2 . 2 . . 2 . . Weapon 2 | . . . 1 . . . . . . . . . 1 . . . . . . . . . . . . . . . . . . . Parts Attached 230 | 7 4 10 26 13 4 3 2 5 4 1 1 . 7 2 2 2 . 7 2 1 1 2 7 3 5 14 5 7 34 21 25 3 Power 7 | 1 1 1 1 1 . . . . . . . . . . . . . 1 . . . . . . . . . . 1 . . . Engine 4 | 1 . 1 1 1 . . . . . . . . . . . . . . . . . . . . . . . . . . . . Core 3 | . 1 . . . . . . . . . . . . . . . . 1 . . . . . . . . . . 1 . . . Reactor . | . . . . . . . . . . . . . . . . . . . . . . . . . . . . . . . . . Propulsion 14 | 2 . 3 4 . . . . . . . . . . . . . . 1 . . . . 2 . . 1 . . 1 . . . Treads 8 | 2 . 2 3 . . . . . . . . . . . . . . . . . . . . . . 1 . . . . . . Leg 1 | . . . . . . . . . . . . . . . . . . . . . . . . . . . . . 1 . . . Wheel 2 | . . 1 1 . . . . . . . . . . . . . . . . . . . . . . . . . . . . . Hover 1 | . . . . . . . . . . . . . . . . . . . . . . . 1 . . . . . . . . . Flight 2 | . . . . . . . . . . . . . . . . . . 1 . . . . 1 . . . . . . . . . Utility 134 | 2 3 1 7 3 1 1 2 4 4 . 1 . 4 2 . 2 . 3 2 1 1 1 2 3 5 8 4 4 25 15 20 3 Device 82 | 1 . . 3 1 1 1 2 2 3 . 1 . 1 1 . . . 2 2 . 1 . 2 2 3 6 3 3 16 11 13 1 Storage 10 | 1 3 1 . . . . . . . . . . 1 . . 1 . . . . . . . . . 1 . . 1 1 . . Processor 9 | . . . . . . . . . . . . . 1 . . . . . . . . . . . 1 . . 1 3 1 1 1 Hackware 10 | . . . . 1 . . . 2 . . . . . . . . . 1 . 1 . . . . 1 . . . . 1 3 . Protection 22 | . . . 4 1 . . . . 1 . . . 1 1 . 1 . . . . . 1 . 1 . 1 . . 5 1 3 1 Artifact 1 | . . . . . . . . . . . . . . . . . . . . . . . . . . . 1 . . . . . Weapon 75 | 2 . 5 14 9 3 2 . 1 . 1 . . 3 . 2 . . 2 . . . 1 3 . . 5 1 3 7 6 5 . Energy Gun 12 | . . . . 5 . . . . . . . . 1 . . . . . . . . . 2 . . . . 3 . 1 . . Energy Cannon 22 | . . 2 6 1 1 2 . . . . . . 1 . . . . 1 . . . . 1 . . 2 . . . 2 3 . Ballistic Gun 18 | 2 . 2 5 1 . . . . . 1 . . . . . . . . . . . . . . . 1 . . 3 1 2 . Ballistic Cannon 7 | . . . 1 . . . . . . . . . 1 . . . . 1 . . . 1 . . . 2 . . . 1 . . Launcher 12 | . . . 2 1 1 . . 1 . . . . . . 2 . . . . . . . . . . . 1 . 3 1 . . Special Weapon 2 | . . . . 1 1 . . . . . . . . . . . . . . . . . . . . . . . . . . . Impact Weapon . | . . . . . . . . . . . . . . . . . . . . . . . . . . . . . . . . . Slashing Weapon 2 | . . 1 . . . . . . . . . . . . . . . . . . . . . . . . . . 1 . . . Piercing Weapon . | . . . . . . . . . . . . . . . . . . . . . . . . . . . . . . . . . Special Melee Weapon . | . . . . . . . . . . . . . . . . . . . . . . . . . . . . . . . . . Unidentified Prototypes 40 | . . . 2 4 2 . . . . . . . 1 . 1 3 . . . . . . 3 . . 3 2 3 9 5 2 . Corrupted Parts 6 | . . . . . . . . . . . . . . . . . . . . . . . . 1 . . . . . . 5 . System Corruption 31 | . . . . . . . . . . . . . . . . . . . . . . . . 5 . . . . . . 26 . Parts Lost 29 | . . 4 2 . . . . . . . . . . 1 . . . . . 1 . . . 1 . 1 3 . 4 6 4 2 Power 3 | . . 1 1 . . . . . . . . . . . . . . . . . . . . . . . . . 1 . . . Propulsion 3 | . . 3 . . . . . . . . . . . . . . . . . . . . . . . . . . . . . . Utility 18 | . . . . . . . . . . . . . . 1 . . . . . 1 . . . 1 . . 3 . 3 5 3 1 Weapon 5 | . . . 1 . . . . . . . . . . . . . . . . . . . . . . 1 . . . 1 1 1 Highest Loss Streak 2 | . . 1 1 . . . . . . . . . . 1 . . . . . 1 . . . 1 . 1 2 . 2 2 1 1 To Critical Strikes 2 | . . . . . . . . . . . . . . . . . . . . . . . . . . . . . 1 . . 1 Average Backups 23 | 3 9 23 24 25 23 24 24 22 22 22 22 22 22 22 22 23 24 23 23 23 22 23 24 21 22 22 23 22 22 24 23 21 Power . | . 1 2 . 1 1 1 1 1 . . . . . . . . . . . 1 1 1 1 1 1 . . . . . . . Propulsion 2 | 1 2 3 2 4 7 7 6 2 2 2 2 2 1 1 1 1 1 1 1 2 2 2 2 2 2 1 . . . . . 1 Utility 11 | . 1 1 4 7 6 8 9 10 12 12 12 12 10 9 9 10 13 12 13 13 13 15 15 13 13 14 15 13 14 17 15 16 Weapon 6 | 1 3 15 14 8 5 4 5 5 5 4 5 5 7 9 9 8 6 8 6 5 4 3 2 3 3 3 4 5 6 5 5 3 Tool/Special . | . . . . . . . . . . . . . . . . . . . . . . . . . . . . . . . . . Unused Backups 182 | 1 1 . 8 8 14 5 5 6 2 1 . 1 5 . . 2 1 7 5 3 1 3 7 1 . 18 5 8 20 20 9 15 Power 11 | . . . 2 1 1 . . 2 . . . . . . . . . . . 1 . . . . . 1 . . . 2 1 . Propulsion 35 | 1 . . 1 1 7 3 4 2 . . . . 1 . . 1 . 1 1 1 . . 3 . . 2 . . . 3 . 3 Utility 57 | . 1 . 2 1 2 1 . 2 1 1 . . 2 . . 1 . 2 1 1 . 2 3 . . 6 3 4 10 3 3 5 Weapon 77 | . . . 3 4 4 1 1 . 1 . . 1 2 . . . 1 4 3 . 1 1 1 1 . 8 2 4 10 12 5 7 Tool/Special 2 | . . . . 1 . . . . . . . . . . . . . . . . . . . . . 1 . . . . . . Average Slot Usage (%) 63 | . 86 97 96 99 74 48 49 53 51 51 47 53 51 49 47 53 53 56 55 58 57 57 57 60 58 54 52 51 52 57 54 52 Engine 3 | . 7 10 9 9 8 1 1 6 4 . . . 1 5 5 5 5 2 . . . . . . . . . . . . . . Core 1 | . 6 3 . . . 4 4 . . . . . . . . . . 4 4 4 4 4 4 4 4 4 . . . . . . Reactor 2 | . . . . . . . . . 1 6 6 6 3 . . . . 2 4 4 4 4 4 4 4 4 4 4 3 4 4 4 Treads 7 | . 28 25 16 26 12 4 4 1 6 6 6 6 3 . . . . . 3 4 4 4 4 4 4 2 4 . 3 1 1 1 Hover 1 | . . . . . . 1 1 4 . . . . 1 5 5 5 5 . . . . . 3 4 4 1 . 2 . . 2 . Device 18 | . 1 11 17 10 10 19 20 19 18 19 20 18 14 17 17 16 17 15 15 17 14 15 14 14 13 12 16 18 21 27 28 22 Storage 6 | . 14 14 9 9 9 6 6 6 6 6 6 6 5 5 5 5 5 4 4 4 4 4 4 4 4 4 4 6 4 4 4 4 Processor 1 | . . . . . . . . . . . . . . . . . . . . . . . . . 3 4 4 4 4 4 4 7 Hackware 1 | . . . . 6 2 . . . . . . . . . . . . 3 4 4 . . . . 3 4 3 . . . . . Protection 4 | . . . 6 9 7 . . . 1 . . 1 3 2 5 5 5 1 1 . 4 2 4 4 4 1 . . 4 6 5 6 Energy Gun 1 | . . . . 9 4 . . . . . . . 2 . . . . . . . . . 1 3 . . . 2 . . . . Energy Cannon 5 | . . 19 14 9 9 8 6 12 8 6 6 6 4 4 . 3 9 6 8 9 6 1 4 4 4 2 . 1 . . 1 1 Ballistic Gun 2 | . 28 6 6 6 6 . . . . 4 . 4 1 . . . 1 . . . . . . . . 1 . . . . . . Ballistic Cannon 2 | . . . 4 . . . . . . . . . 2 5 5 5 1 5 4 3 6 9 9 9 8 8 7 3 3 3 2 2 Peak Build Rating 283 | 7 10 17 32 36 53 66 84 91 93 96 98 97 109 108 105 113 112 145 154 162 152 155 177 178 184 195 221 217 270 283 259 255 Average Rating 138 | 5 7 13 25 33 44 61 69 85 89 91 90 94 102 104 100 106 110 140 147 154 145 149 162 175 181 182 184 198 219 258 241 241 On Entrance 117 | . 7 9 17 32 32 49 66 84 91 88 92 96 97 109 100 100 113 110 145 148 150 152 151 176 169 182 195 172 201 261 238 239 Naked Turns . | . . . . . . . . . . . . . . . . . . . . . . . . . . . . . . . . . Heaviest Build 236 | 12 28 101 125 113 109 114 114 121 131 136 132 132 154 139 142 152 152 161 164 171 182 184 188 192 194 190 236 234 228 171 182 155 Greatest Support 419 | 40 40 40 60 60 60 92 115 189 189 189 189 189 189 189 189 189 189 235 235 229 229 229 229 229 264 264 242 233 352 329 419 419 Greatest Overweight (x) 12 | 3 . 6 3 1 12 1 1 1 . . . . . . . . . . . . . . . . . . 1 1 . . . . Average Overweight (x) . | . . 2 2 1 2 1 . . . . . . . . . . . . . . . . . . . . . . . . . . Largest Inventory Capacity 25 | 8 15 25 25 25 25 25 25 25 25 25 25 25 25 25 25 25 25 25 25 25 25 25 25 25 25 25 25 25 25 25 25 25 Average Capacity 24 | 7 10 24 25 25 25 25 25 25 25 25 25 25 25 25 25 25 25 25 25 25 25 25 25 25 25 25 25 25 25 25 25 25 Most Carried 25 | 6 15 25 25 25 25 25 25 25 25 25 25 25 25 25 25 25 25 25 25 25 25 25 25 25 25 25 25 25 25 25 25 25 Average Carried 24 | 3 9 23 24 24 23 24 24 24 24 24 25 25 24 24 24 24 24 24 24 24 24 24 24 24 24 24 24 24 24 24 23 23 Final Capacity 25 | 8 15 25 25 25 25 25 25 25 25 25 25 25 25 25 25 25 25 25 25 25 25 25 25 25 25 25 25 25 25 25 25 25 Final Carried 25 | 5 15 25 25 25 25 25 25 25 24 25 25 25 25 25 25 25 25 25 25 25 25 25 25 24 25 25 23 25 25 25 25 25 Scrap Engine Consumption 417 | . . . . . 51 5 12 3 2 1 . . 7 2 . 3 2 3 8 1 2 4 16 1 1 43 13 32 63 68 60 14 Constructs Created 4 | . . . . . 4 . . . . . . . . . . . . . . . . . . . . . . . . . . . Constructs Modified 197 | . . . . . 12 6 3 1 3 . 1 . 6 . . . 1 4 3 . 2 1 1 2 1 22 11 15 29 33 29 11 Class Distribution -------------------- 37% | Construct 22% | Scavenger-Construct 8% | Commander-Construct 7% | Mutant 7% | Hacker-Construct 7% | Commander-Tank 5% | Tank Dominant Class ---------------- Mutant | -10/Materials Mutant | -10/Subcaves Tank | -8/Materials Tank | -8/Storage Commander-Construct | -8/Recycling Commander-Construct | -6/Factory Construct | -6/Waste Construct | -6/Factory Construct | -6/Lower Caves Construct | -6/Lower Caves Construct | -6/Data Miner Construct | -5/Proximity Caves Construct | -5/Factory Construct | -5/Upper Caves Construct | -5/Upper Caves Construct | -5/Zhirov Construct | -4/Proximity Caves Construct | -4/Factory Construct | -4/Waste Construct | -4/Factory Construct | -4/Upper Caves Construct | -4/Upper Caves Construct | -4/Warlord Construct | -3/Proximity Caves Hacker-Construct | -3/Research Hacker-Construct | -3/Quarantine Hacker-Construct | -2/Research Construct | -2/Testing Construct | -2/Protoforge Scavenger-Construct | -1/Access Scavenger-Construct | -1/Command Scavenger-Construct | -1/Access_0 Resources | -11 -10 -10 -8 -8 -8 -6 -6 -6 -6 -6 -6 -5 -5 -5 -5 -5 -4 -4 -4 -4 -4 -4 -4 -3 -3 -3 -2 -2 -2 -1 -1 -1 ----------- Run | Yrd Mat Sub Mat Sto Rec Fac Was Fac Low Low Dat Pro Fac Upp Upp Zhi Pro Fac Was Fac Upp Upp War Pro Res Qua Res Tes Frg Acc Com Ac0 Matter Collected 41720 | 264 220 201 663 476 650 121 237 139 648 262 . 284 597 360 371 265 88 283 93 205 83 210 805 65 123 909 735 556 11307 12850 6488 1162 Remotely 10996 | . . . . . . . . . . . . . . . . . . . . . . . . . . . 90 . 2350 5942 2306 308 Salvage Created 46238 | 56 503 337 658 1548 1903 132 350 172 487 24 . 30 625 135 389 265 34 411 264 233 100 318 784 3 154 965 1197 446 10937 15058 7471 249 Parts 1953 | 6 40 27 54 82 88 4 10 17 16 4 . 7 48 1 11 12 4 10 . 3 1 8 38 1 7 74 47 33 527 526 243 4 Haulers Intercepted 21 | . 2 . 1 6 1 1 . . . . . . 1 . . . . 1 . . . 1 . . . . 3 . . 4 . . Recyclers Shooed 8 | 1 1 . . 2 1 2 . . . . . . . . . . . . . . . . . . . . 1 . . . . . Parts Field Recycled . | . . . . . . . . . . . . . . . . . . . . . . . . . . . . . . . . . Retrieved Matter . | . . . . . . . . . . . . . . . . . . . . . . . . . . . . . . . . . Parts Self-Destructed 44 | . . . . . . . . . 16 1 . 7 . . 1 11 3 . . . . 5 . . . . . . . . . . Prevented 1 | . . . . . . . . . . . . . . . . . 1 . . . . . . . . . . . . . . . Kills | -11 -10 -10 -8 -8 -8 -6 -6 -6 -6 -6 -6 -5 -5 -5 -5 -5 -4 -4 -4 -4 -4 -4 -4 -3 -3 -3 -2 -2 -2 -1 -1 -1 ------- Run | Yrd Mat Sub Mat Sto Rec Fac Was Fac Low Low Dat Pro Fac Upp Upp Zhi Pro Fac Was Fac Upp Upp War Pro Res Qua Res Tes Frg Acc Com Ac0 Combat Hostiles Destroyed 914 | . 12 7 18 28 6 1 . 6 9 4 . 6 13 . 5 . 5 5 1 . . 5 13 2 1 14 14 8 250 313 151 17 Melee 7 | . . . . . . . . . . . . 1 2 . . . . . . . . . . . . . . . 3 1 . . Guns 36 | . 12 4 6 7 3 . . . . . . . . . . . . . . . . . . . . 3 . . 1 . . . Cannons 506 | . . 3 6 13 3 1 . 2 7 . . 2 7 . 1 . 1 5 1 . . 1 13 . 1 4 14 8 127 206 67 13 AOE 337 | . . . 6 7 . . . 4 2 4 . 3 4 . 4 . 4 . . . . 4 . 2 . . . . 101 106 82 4 Classes Destroyed 37 | 2 3 2 4 1 2 . . . 1 . . 1 . 1 . . . . 1 . . . 1 . . 2 1 1 11 2 1 . Worker 27 | . . . . 1 1 1 . . . . . . 3 . . . . . . 1 . . . . . . . . 5 11 4 . Builder 10 | . . . 1 . 2 . . . . . . . . . . . . . . . . . . . . . . . 2 5 . . Tunneler 4 | 1 1 . 1 . . . . . . . . . 1 . . . . . . . . . . . . . . . . . . . Hauler 21 | . 2 . 1 6 1 1 . . . . . . 1 . . . . 1 . . . 1 . . . . 3 . . 4 . . Recycler 22 | 1 2 . . 1 6 . . . . . . . . . . . . . . 2 . . . . 1 . . . . 7 2 . Carrier 31 | . . . . . . . . . . . . . . . . . . . . . . . . . . . . . 7 23 1 . Mechanic 34 | . . . . . . . . . . . . . . . . . . . . . . . . . . . . . 5 16 13 . Operator 3 | . . . . . . . . . . . . . . . . . . . . . . . . . . 1 . . 1 . 1 . Drone 27 | . . . . . . . . . . . . 2 . . . . . . . . . . . 2 . . . . 23 . . . Watcher 14 | . . . . . . . . . . . . . . . . . . . . . . . . . . 2 . . 4 4 4 . Swarmer 62 | . 9 . 7 7 1 . . 4 . 4 . 4 4 . 1 . 5 . . . . . . . . . . . . 10 6 . Cutter 20 | . . . . . . . . . . . . . . . . . . . . . . . . . . . . . . 20 . . Saboteur 33 | . . . . . . . . . . . . . . . . . . . . . . . . . . . . . 11 18 4 . Grunt 250 | . 3 . 2 12 3 1 . . 5 . . . 3 . 3 . . 5 . . . 5 2 . . . 6 . 67 96 37 . Brawler 45 | . . . 1 . 1 . . . . . . . . . . . . . . . . . 3 . . . . . 16 19 5 . Duelist 38 | . . . . . . . . . 2 . . . . . . . . . . . . . . . . . . . 16 12 8 . Protector 41 | . . . . . . . . . . . . . . . . . . . . . . . 3 . . . . . 12 16 10 . Researcher 10 | . . . . . . . . . . . . . . . . . . . . . . . . . . . . . 10 . . . Sentry 41 | . . . 6 9 3 . . 2 . . . . . . 1 . . . . . . . . . 1 . 1 . 11 1 6 . Demolisher 6 | . . . . . 2 . . . . . . . . . . . . . . . . . 1 . . . . . . 3 . . Specialist 11 | . . . . . . . . . . . . . . . . . . . . . . . . . . . . . 1 4 6 . Hunter 44 | . . . 2 . 2 . . . 2 . . . 2 . . . . . . . . . . . . 2 2 . 11 16 5 . Programmer 120 | . . . . . 1 . . . . . . . 4 . . . . . . . . . 4 . . . 1 7 39 42 22 . Heavy 2 | . . . . . . . . . . . . . . . . . . . . . . . . . . . . . . . 2 . Q-Series 5 | . . . . . . . . . . . . . . . . . . . . . . . . . . . . . 5 . . . Behemoth 6 | . . . . . . . . . . . . . . . . . . . . . . . . . . . . . . 2 4 . Compactor 1 | . . . . . . . . . . . . . . . . . . . 1 . . . . . . . . . . . . . Quarantine Guard 12 | . . . . . . . . . . . . . . . . . . . . . . . . . . 12 . . . . . . M Guard 2 | . . . . . . . . . . . . . . . . . . . . . . . . . . . . . . . 2 . Enhanced Grunt 8 | . . . . . . . . . . . . . . . . . . . . . . . . . . . . . . . . 8 Enhanced Hunter 6 | . . . . . . . . . . . . . . . . . . . . . . . . . . . . . . . . 6 Hotshot 9 | . . . . . . . . . . . . . . . . . . . . . . . . . . . . . 9 . . . Decapitator 8 | . . . . . . . . . . . . . . . . . . . . . . . . . . . . . 8 . . . Immortal 3 | . . . . . . . . . . . . . . . . . . . . . . . . . . . . . 3 . . . Overlord 1 | . . . . . . . . . . . . . . . . . . . . . . . . . . . . . 1 . . . Combat Programmer 2 | . . . . . . . . . . . . . . . . . . . . . . . . . . . . . . . 2 . Investigator 4 | . . . . . . . . . . . . . . . . . . . . . . . . . . . . . 1 2 1 . Striker 52 | . . . . . . . . . . . . . . . . . . . . . . . . . . . 4 . 5 26 17 . Executioner 36 | . . . . . . . . . . . . . . . . . . . . . . . . . . . . . 2 22 12 . Alpha 7 4 | . . . . . . . . . . . . . . . . . . . . . . . . . . . . 1 2 . 1 . V-Series 7 | . . . . . . . . . . . . . . . . . . . . . . . . . . . . . 7 . . . Artisan 1 | . . 1 . . . . . . . . . . . . . . . . . . . . . . . . . . . . . . Subdweller 8 | . . 7 . . 1 . . . . . . . . . . . . . . . . . . . . . . . . . . . Decomposer 2 | . . . . . . . . . . . . . . 2 . . . . . . . . . . . . . . . . . . Samaritan 9 | . . . . . . . . . . . . . . 2 6 . . . . . 1 . . . . . . . . . . . Tinkerer 1 | . . . . . . . . . . . . . . . . . . . . . . . . . . . . . 1 . . . Assembled 6 | . . . . . . . . . . . . . . . . . . . . . . . . . . . . . . 6 . . Mutant 1 | . . . . . . . . . . . . . . . . . . . . . . . . . . . . . . . 1 . Commander 1 | . . . . . . . . . . . . . . . . . . . . . . . . . . . . . . . 1 . Best Kill Streak 51 | 1 4 2 4 5 4 3 . 4 3 4 . 4 6 . 4 . 5 3 1 2 . 6 5 2 1 4 4 3 51 43 40 4 Combat Bots Only 44 | . 3 2 4 5 2 1 . 4 3 4 . 4 5 . 4 . 5 3 1 . . 5 5 2 1 4 4 3 44 35 35 4 Max Kills in Single Turn 15 | 1 2 1 2 3 1 1 . 3 2 2 . 3 2 1 3 . 3 2 1 1 1 2 1 2 1 1 1 1 9 8 15 2 Gunslinging . | . . . . . . . . . . . . . . . . . . . . . . . . . . . . . . . . . Exploded 11 | . . . 2 3 . . . 3 2 2 . 3 2 . 3 . 3 . . . . 2 . 2 . . . . 8 7 11 2 Melee 1 | . . . . . . . . . . . . 1 1 . . . . . . . . . . . . . . . 1 1 . . Uniques/NPCs Destroyed 6 | . . . . . . . . . . . . . . . . . . . . . . . . . . . . . 1 . 2 3 Superfortress (-2/Protoforge) MAIN.C Shell (-1/Command) MAIN.C (-1/Command) A8 (-1/Access_0) A6 (-1/Access_0) A5 (-1/Access_0) Combat | -11 -10 -10 -8 -8 -8 -6 -6 -6 -6 -6 -6 -5 -5 -5 -5 -5 -4 -4 -4 -4 -4 -4 -4 -3 -3 -3 -2 -2 -2 -1 -1 -1 -------- Run | Yrd Mat Sub Mat Sto Rec Fac Was Fac Low Low Dat Pro Fac Upp Upp Zhi Pro Fac Was Fac Upp Upp War Pro Res Qua Res Tes Frg Acc Com Ac0 Hostile Shots Fired 3346 | . 49 24 99 67 9 3 . 52 55 3 . 39 48 2 23 . 24 28 . 5 17 16 21 16 6 90 118 59 904 544 477 548 Missed 1136 | . 12 5 24 18 4 1 . 20 10 . . 12 11 . 5 . 11 9 . 3 5 5 7 5 4 44 39 16 238 183 228 217 Intercepted 42 | . . . . . . . . . . . . . . . . . . . . . . . . . . . . . 12 13 17 . Deflected 27 | . . . . . . . . . . . . . . . . . . . . . . . . . . . . . 27 . . . Hits 2210 | . 37 19 75 49 5 2 . 32 45 3 . 27 37 2 18 . 13 19 . 2 12 11 14 11 2 46 79 43 666 361 249 331 Melee 58 | . . . . . . . . . . . . . . . . . . . . . . . . . . . 8 . 30 12 . 8 Projectile 2152 | . 37 19 75 49 5 2 . 32 45 3 . 27 37 2 18 . 13 19 . 2 12 11 14 11 2 46 71 43 636 349 249 323 AOE 34 | . . . . . . 1 . . . . . . . . . . . . . . . . 4 . . . 7 . 14 3 5 . Critical Strikes 198 | . . . 2 4 . . . . 3 . . . . 1 . . . 3 . . . . 2 1 . 2 5 6 87 30 15 37 Actively Blocked 93 | . . . . . . . . . . . . . . . . . . . . . . . . . . . 1 2 61 9 15 5 Part Disruptions 8 | . . . . . . . . . . . . . . . . . . . . . . . . . . . . 1 2 . 4 1 Actively Blocked 4 | . . . . . . . . . . . . . . . . . . . . . . . . . . . . . . . 3 1 Damage Taken 40134 | . 337 509 869 752 60 132 . 282 804 53 . 421 791 130 158 . 103 331 . 24 97 146 298 240 25 1383 2126 612 12104 7632 4593 5122 Core 3208 | . 68 109 86 53 . . . 34 36 . . . 38 . . . 6 . . . 8 . 61 . . . 108 122 944 524 294 717 Absorbed by Shields 15294 | . . . 184 . . . . 117 . 18 . 76 . . 150 . 106 69 . 25 104 123 284 . 25 . 262 506 4482 1266 2219 5278 Reduced by Siege Mode 783 | . . . . . . . . . 52 . . 14 25 . . . . . . . . . . . . . . . 692 . . . Redirected to Core 321 | . . . . . . . . . . . . . . . . . . . . . . . . . . . 52 97 172 . . . Redirected to Shielding 152 | . . . . . . . . . . . . . . . . . . . . . . . . . . . . . 56 . 18 78 Ignored by Resistances 3169 | . . . . . . . . . . . . . . . . . . . . . . . . . . . . . 1057 1182 930 . Regen/Repaired (Parts) 23159 | . . . 16 505 91 2 50 144 152 37 11 . 1228 . . . 95 180 363 . . 61 106 89 197 610 829 240 7186 6651 1985 2331 Core Remaining (%) 74 | 100 . 29 . . 74 . . . . . . 91 . . . . 95 . . . . . . 94 . 100 . . 15 . . . Volleys Fired 2355 | 2 45 25 47 59 115 24 20 20 49 11 . 27 46 26 17 20 7 21 2 24 9 15 95 1 12 69 57 48 519 472 298 153 Largest 3 | 2 2 2 3 3 3 2 1 2 1 1 . 1 2 1 1 1 1 2 1 3 1 2 2 1 2 3 2 2 3 2 1 1 Hottest 393 | 40 40 160 193 184 154 167 102 141 102 102 . 102 183 90 102 90 102 141 51 255 98 238 154 45 228 285 99 109 393 393 228 88 Shots Fired 2632 | 4 90 47 109 161 160 25 20 21 50 11 . 27 47 30 16 20 9 28 2 26 9 16 97 1 13 84 62 51 495 463 286 152 Gun 358 | 4 90 21 41 85 70 . . . . . . . 14 . . . . . . . . . . . . 26 . . 6 1 . . Cannon 2011 | . . 26 62 73 48 25 10 19 48 8 . 25 30 30 14 6 5 28 2 26 9 14 97 . 13 58 62 41 409 415 260 148 Launcher 180 | . . . 6 3 . . . 2 2 3 . 2 3 . 2 . 4 . . . . 2 . 1 . . . . 73 47 26 4 Special 83 | . . . . . 42 . 10 . . . . . . . . 14 . . . . . . . . . . . 10 7 . . . Kinetic 1671 | 4 90 21 67 44 29 . . . 10 8 . 25 23 . 14 . 3 16 2 6 . 10 76 . 5 48 58 27 332 416 189 148 Thermal 763 | . . 26 36 114 131 25 20 19 38 . . . 21 30 . 20 2 12 . 20 9 4 21 . 8 25 . 24 90 . 68 . Explosive 131 | . . . 6 3 . . . 2 2 3 . 2 3 . 2 . 4 . . . . 2 . 1 . . . . 31 47 19 4 Electromagnetic 63 | . . . . . . . . . . . . . . . . . . . . . . . . . . 11 . . 42 . 10 . Entropic 4 | . . . . . . . . . . . . . . . . . . . . . . . . . . . 4 . . . . . Robot Hit Streak 66 | 3 11 12 10 21 14 4 13 2 6 7 . 8 19 5 10 14 2 10 1 7 14 2 10 . 9 17 11 28 66 58 57 13 Robot Miss Streak 8 | . 4 2 4 3 3 3 3 1 3 . . 5 2 . 3 1 4 2 1 1 . 2 6 . 2 4 3 2 4 2 4 8 Penetration Max 2 | . . . . . . . . . . . . . 1 . . . . 1 . . . . 2 . . . . . 2 . 1 . Secondary Targets 1 | . 1 . . . . . . . . . . . . . . . . . . . . . . . . . . . . . . . Max Gunslinging Chain 1 | . 1 . . . . . . . . . . . . . . . . . . . . . . . . . . . . . . . Capacitor 7 | . . . . . . . . . . . . . . . . . . . . . . . . . . . . . 7 . . . Shots Hit Robots 1780 | 3 52 34 54 102 108 4 16 3 30 2 . 10 28 5 16 18 2 19 1 7 7 5 41 . 6 44 40 38 344 377 253 111 Core Hits 1501 | 3 27 10 27 53 49 1 2 4 10 6 . 6 25 3 32 6 7 9 1 3 2 29 18 2 4 24 19 8 307 311 427 66 Critical Kills 40 | . . . 1 1 . . . . . . . . . . . . . 5 1 . . 1 12 . 1 4 . . 3 11 . . Critical Parts Destroyed 65 | . . . . . . . . . 2 . . . 1 . . . . 5 . 2 . . 29 . . 8 . . 5 13 . . Critical Strikes 137 | . . . 3 2 3 . . . 2 . . . 1 . . . . 10 1 2 . 1 45 . 2 14 . 1 10 27 13 . Burn 4 | . . . . 1 3 . . . . . . . . . . . . . . . . . . . . . . . . . . . Meltdown 1 | . . . . 1 . . . . . . . . . . . . . . . . . . . . . . . . . . . . Destroy 114 | . . . 1 . . . . . 2 . . . 1 . . . . 10 1 2 . 1 45 . 2 14 . . 10 25 . . Blast 18 | . . . 2 . . . . . . . . . . . . . . . . . . . . . . . . 1 . 2 13 . Melee Attacks 8 | . . 3 . . . . . . . . . . . . . . . . . . . . . . . . . . 5 . . . Impact . | . . . . . . . . . . . . . . . . . . . . . . . . . . . . . . . . . Slashing 8 | . . 3 . . . . . . . . . . . . . . . . . . . . . . . . . . 5 . . . Piercing . | . . . . . . . . . . . . . . . . . . . . . . . . . . . . . . . . . Sneak Attacks 3 | . . . . . . . . . . . . . . . . . . . . . . . . . . . . . 3 . . . Combat Hostiles 1 | . . . . . . . . . . . . . . . . . . . . . . . . . . . . . 1 . . . Follow-up Attacks . | . . . . . . . . . . . . . . . . . . . . . . . . . . . . . . . . . Damage Inflicted 351313 | 41 559 710 1545 2416 2121 314 440 509 1631 319 . 901 1922 270 1132 244 567 421 14 321 299 809 1578 175 245 2515 3200 2370 104299 142747 64772 11907 Guns 3520 | 31 559 219 492 927 889 . . . . . . . 189 . . . . . . . . . . . . 160 . . 54 . . . Cannons 229378 | . . 491 737 1078 1048 274 358 150 1435 . . 471 1047 175 567 144 84 421 14 127 224 150 1578 . 245 2300 3185 2326 66813 97839 36540 9557 Explosions 116515 | . . . 288 346 . . . 359 196 319 . 374 557 . 565 . 483 . . . . 659 . 175 . . . . 36704 44908 28232 2350 Melee 445 | . . . . . . . . . . . . . . . . . . . . . . . . . . . . . 445 . . . Ramming 1013 | 10 . . 28 65 . 40 . . . . . 56 129 95 . . . . . 194 75 . . . . 55 15 . 251 . . . Kinetic 205755 | 31 559 219 711 423 393 . . . 264 . . 471 1047 . 567 . 84 246 14 53 . 150 1126 . 204 920 2790 1202 52999 97839 33886 9557 Thermal 26118 | . . 491 518 1582 1728 274 440 150 1171 . . . 189 175 . 244 . 175 . 74 224 . 452 . 41 435 . 1168 13900 50 2637 . Explosive 113072 | . . . 288 346 . . . 359 196 319 . 374 557 . 565 . 483 . . . . 659 . 175 . . . . 33571 44821 28009 2350 Electromagnetic 4515 | . . . . . . . . . . . . . . . . . . . . . . . . . . 1105 . . 3133 37 240 . Impact . | . . . . . . . . . . . . . . . . . . . . . . . . . . . . . . . . . Slashing 445 | . . . . . . . . . . . . . . . . . . . . . . . . . . . . . 445 . . . Piercing . | . . . . . . . . . . . . . . . . . . . . . . . . . . . . . . . . . Entropic 395 | . . . . . . . . . . . . . . . . . . . . . . . . . . . 395 . . . . . Highest Corruption 60 | . . . . . . 2 2 2 2 2 2 2 . 3 3 3 3 . . . . . 1 7 . . . 6 60 27 55 3 Average Corruption 16 | . . . . . . 1 2 2 2 2 2 2 . 3 3 3 3 . . . . . 1 2 . . . 4 33 16 33 2 Corruption Purged 68 | . . . . . . . . . . . . . . . . . . . . . . . . . . . . . . . 68 . Corruption Blocked . | . . . . . . . . . . . . . . . . . . . . . . . . . . . . . . . . . Effects 724 | . . . . . . 4 8 3 11 6 1 12 . 32 13 4 5 . . . . . 9 . . . . 18 223 193 176 6 Message Errors 154 | . . . . . . 2 4 2 . 1 . 1 . 4 4 1 . . . . . . 1 . . . . 5 38 49 41 1 Matter Fused 176 | . . . . . . . 3 1 4 4 1 5 . 10 2 2 1 . . . . . 3 . . . . 4 42 46 46 2 Heat Flow Errors 71 | . . . . . . . . . 1 1 . 1 . 2 . . 1 . . . . . 1 . . . . 3 21 16 23 1 Energy Discharges 76 | . . . . . . . . . 1 . . 2 . 2 2 1 . . . . . . 2 . . . . 4 17 30 15 . Parts Rejected 8 | . . . . . . . . . 1 . . . . . . . . . . . . . 1 . . . . . 1 1 4 . Parts Fused 6 | . . . . . . . . . . . . . . 1 . . . . . . . . . . . . . 1 1 3 . . Data Loss (minor) 81 | . . . . . . . 1 . 2 . . 2 . 6 4 . . . . . . . . . . . . . 27 23 15 1 Data Loss (major) 35 | . . . . . . 1 . . 1 . . 1 . 2 . . 1 . . . . . 1 . . . . 1 10 9 8 . Misfires 11 | . . . . . . . . . 1 . . . . 4 . . 2 . . . . . . . . . . . 3 . 1 . Alerts 15 | . . . . . . 1 . . . . . . . 1 . . . . . . . . . . . . . . 3 4 6 . Misdirections 24 | . . . . . . . . . . . . . . . . . . . . . . . . . . . . . 18 2 4 . Weapon Failures 67 | . . . . . . . . . . . . . . . 1 . . . . . . . . . . . . . 42 10 13 1 Overload Shots . | . . . . . . . . . . . . . . . . . . . . . . . . . . . . . . . . . Overflow Damage 59009 | . . 16 4 42 52 32 . 133 109 12 . 60 58 126 49 9 13 . . 13 22 . 21 . . 113 82 520 21688 28161 7403 271 Projectiles 48837 | . . 16 . 15 52 32 . . 109 . . 23 29 59 26 9 . . . . 22 . 21 . . 113 82 520 17596 23559 6294 260 Explosions 9813 | . . . 4 27 . . . 133 . 12 . 37 29 . 23 . 13 . . . . . . . . . . . 3813 4602 1109 11 Melee 359 | . . . . . . . . . . . . . . 67 . . . . . 13 . . . . . . . . 279 . . . Knockbacks 353 | 1 . . . . . . . . 1 . . 1 11 . . . . 2 . . 1 1 2 . . 6 16 7 78 84 54 88 Impact 4 | 1 . . . . . . . . . . . . . . . . . . . . 1 . . . . . . . 2 . . . Kinetic 328 | . . . . . . . . . 1 . . 1 10 . . . . 2 . . . 1 1 . . 5 16 7 71 77 50 86 Secondary 21 | . . . . . . . . . . . . . 1 . . . . . . . . . 1 . . 1 . . 5 7 4 2 Self-Inflicted Damage 972 | . . . 109 . . . . 24 . 25 . . 48 47 . . 15 . . . . 38 . . . . . . 559 . 107 . Shots 47 | . . . 4 . . . . 1 . 2 . . 2 . . . 1 . . . . 2 . . . . . . 31 . 4 . Rammed 38 | 4 . . 3 9 . 3 . . . . . 2 4 3 . . . . . 4 1 . . . . 2 1 . 2 . . . Targets Rammed 46 | 5 . . 3 10 . 4 . . . . . 2 6 3 . . . . . 4 1 . . . . 2 1 . 5 . . . Kicked . | . . . . . . . . . . . . . . . . . . . . . . . . . . . . . . . . . Crushed 8 | 1 . . . 1 . 1 . . . . . . 2 . . . . . . . . . . . . . . . 3 . . . Highest Temperature 447 | . 9 195 397 289 306 126 138 113 222 241 . 418 232 163 66 . 66 45 . 102 24 146 269 . 187 268 319 216 447 223 362 82 Average Temperature 120 | . 5 85 88 84 88 50 65 38 75 76 . 149 78 84 32 . 36 18 . 59 10 49 38 . 100 105 121 93 111 146 121 82 Received Heat Transfer 2486 | . 66 30 110 396 9 12 . 49 225 . . 24 45 9 20 . 4 66 . . 10 28 . . 4 . 27 12 760 426 154 . Effects 17 | . . . 1 . 1 . . . 1 . . 4 . . . . . . . . . . . . . 1 . . 4 5 . . Shutdowns 3 | . . . 1 . . . . . . . . 1 . . . . . . . . . . . . . . . . 1 . . . Energy Bleed 6 | . . . . . . . . . . . . . . . . . . . . . . . . . . 1 . . 2 3 . . Interference 6 | . . . . . . . . . 1 . . 2 . . . . . . . . . . . . . . . . 1 2 . . Short Circuit 1 | . . . . . . . . . . . . 1 . . . . . . . . . . . . . . . . . . . . Damage (minor) 1 | . . . . . 1 . . . . . . . . . . . . . . . . . . . . . . . . . . . Siege Activations 7 | . . . . . . . . . 3 . . 1 2 . . . . . . . . . . . . . . . 1 . . . Total Turns 129 | . . . . . . . . . 40 . . 9 22 . . . . . . . . . . . . . . . 58 . . . Longest Duration 58 | . . . . . . . . . 25 . . 9 17 . . . . . . . . . . . . . . . 58 . . . Martial Activations . | . . . . . . . . . . . . . . . . . . . . . . . . . . . . . . . . . Shielding Activations . | . . . . . . . . . . . . . . . . . . . . . . . . . . . . . . . . . Robots Disrupted . | . . . . . . . . . . . . . . . . . . . . . . . . . . . . . . . . . Combat Hostiles . | . . . . . . . . . . . . . . . . . . . . . . . . . . . . . . . . . Robots Corrupted 30 | . . . . . . . . . . . . . . 2 . . . . . . . . . . . 7 . . 18 . 3 . Combat Hostiles 26 | . . . . . . . . . . . . . . . . . . . . . . . . . . 7 . . 17 . 2 . Parts Fried 68 | . . . . . . . . . . . . . . 1 . . . . . 1 . . 1 . . 13 . . 40 3 9 . Impact Corruptions 27 | . . . . . . . . . . . . . . 10 . . . . . 1 . . . . . . . . 5 7 3 1 Robots Melted 1 | . . . . 1 . . . . . . . . . . . . . . . . . . . . . . . . . . . . Combat Hostiles 1 | . . . . 1 . . . . . . . . . . . . . . . . . . . . . . . . . . . . Parts Melted 18 | . . . 1 4 2 1 . . 1 . . . . . . . . . . . 2 . . . . 1 . . 1 5 . . Heat Transferred 16163 | . . 666 703 2923 3339 185 509 111 851 . . . 296 185 . 454 . 185 . 37 350 . 650 . 37 444 . 657 2973 50 558 . Parts Sabotaged 4 | . . . . . . . . . . . . . . . . . . . . . . . . . . . . . 2 2 . . Parts Stolen . | . . . . . . . . . . . . . . . . . . . . . . . . . . . . . . . . . Parts Stripped . | . . . . . . . . . . . . . . . . . . . . . . . . . . . . . . . . . Power Chain Reactions 3 | . . . . . . . . . . . . . . . . . . . . . . . . . . . . . 2 1 . . Alert | -11 -10 -10 -8 -8 -8 -6 -6 -6 -6 -6 -6 -5 -5 -5 -5 -5 -4 -4 -4 -4 -4 -4 -4 -3 -3 -3 -2 -2 -2 -1 -1 -1 ------- Run | Yrd Mat Sub Mat Sto Rec Fac Was Fac Low Low Dat Pro Fac Upp Upp Zhi Pro Fac Was Fac Upp Upp War Pro Res Qua Res Tes Frg Acc Com Ac0 Maximum Alert Level 5 | . . . . 1 . 1 . . . . . . 2 . . . . 2 . 2 . . . . . . . . 5 5 5 . Low Security (%) 53 | 100 100 . 100 79 100 12 100 100 . . . . 14 . . . . 69 100 61 . . . . 100 100 100 100 22 . . . Level 1 5 | . . . . 20 . 87 . . . . . . 39 . . . . 28 . 17 . . . . . . . . 3 . . . Level 2 2 | . . . . . . . . . . . . . 45 . . . . 2 . 21 . . . . . . . . 7 . . . Level 3 2 | . . . . . . . . . . . . . . . . . . . . . . . . . . . . . 21 . . . Level 4 . | . . . . . . . . . . . . . . . . . . . . . . . . . . . . . 8 . . . Level 5 12 | . . . . . . . . . . . . . . . . . . . . . . . . . . . . . 17 2 57 . High Security 23 | . . . . . . . . . . . . . . . . . . . . . . . . . . . . . 18 97 42 . Max Security . | . . . . . . . . . . . . . . . . . . . . . . . . . . . . . . . . . Sterilizations 1 | . . . . . . . . . . . . . . . . . . . . . . . . . . . . . . 1 . . Peak Influence 12162 | 5 110 . 148 249 129 352 25 140 . . . . 480 . . . . 403 123 529 . . . . 32 117 182 81 6578 12162 11618 . Initial 7783 | . 3 . . 27 92 352 25 . . . . . 480 . . . . 31 123 . . . . . 9 15 9 81 13 3946 7783 . Average 2732 | 1 61 . 80 128 18 251 1 58 . . . . 348 . . . . 158 44 216 . . . . 7 29 108 27 1707 9923 10192 . Influence Increases 29527 | 10 326 . 659 1089 543 631 3 292 240 90 . 130 1030 15 205 10 170 493 52 784 5 105 305 55 49 712 477 325 7291 8326 3992 1113 Destroy 0b10 Robot/C 17860 | . 240 . 360 600 140 120 . 120 180 80 . 80 260 . 100 . 100 100 . 260 . 100 200 . 20 280 280 180 4900 6320 2840 . Destroy 0b10 Robot/NC 1115 | 10 25 . 15 50 115 25 . . . . . 10 25 . . 10 . 30 . 20 5 5 15 10 5 15 15 . 205 320 185 . Destroy Leader 2840 | . 44 . 112 164 . 42 . 30 30 10 . 10 42 . . . 10 14 . 50 . . . . 10 134 56 30 588 1006 458 . Allied During Kill 467 | . . . . 92 92 47 . 2 . . . . . . . . . . . 227 . . . . . . . 7 . . . . Successful Hack 341 | . 17 . 23 31 8 . . 38 . . . . 16 . . . . 18 . 65 . . . . . 70 . . 33 . 22 . Select Force Hacks 180 | . . . . . 180 . . . . . . . . . . . . . . . . . . . . . . . . . . . Disable Machine 975 | . . . 45 90 . 15 . . . . . . 60 . . . . 90 . 60 . . . . . 150 . 45 300 30 45 45 Anti-Garrison Action 550 | . . . . . . . . . . . . . . . . . . 150 . . . . . . . . . . 200 150 50 . Destroy Structure 3274 | . . . 59 32 8 32 3 27 . . . . 132 . . . . 76 52 72 . . . . 14 48 51 48 885 305 362 1068 Advance Influence 800 | . . . . . . 350 . . . . . . 450 . . . . . . . . . . . . . . . . . . . Partial Spotted 105 | . . . . . . . . . . . . . 15 . . . . . . 30 . . . . . 15 . . . 45 . . Lose Combat Pursuer 1020 | . . . 45 30 . . . 75 30 . . 30 30 15 105 . 60 15 . . . . 90 45 . . 75 15 180 150 30 . Influence Decreases 28434 | 5 309 22 594 917 774 564 76 217 303 102 . 81 643 451 136 79 120 189 406 418 306 170 273 72 35 725 348 446 737 2742 4459 11715 Entered New Map 19769 | . 2 11 . 38 145 4 48 . 29 3 . . 19 162 . 69 . 19 231 . 136 13 . 32 6 14 7 64 11 2632 4379 11695 Time Decay 7085 | 5 307 11 456 634 589 270 28 205 274 99 . 81 474 279 136 10 120 140 155 188 170 157 273 30 29 516 311 362 686 50 40 . Search Patrol Dispatched 150 | . . . . . . . . . . . . . 150 . . . . . . . . . . . . . . . . . . . Lost Part 250 | . . . 20 . . . . . . . . . . 10 . . . . . 10 . . . 10 . 10 30 . 40 60 40 20 Lost Ally 482 | . . . . . 40 140 . 12 . . . . . . . . . 30 20 220 . . . . . . . 20 . . . . Purge Threat 698 | . . . 118 245 . 150 . . . . . . . . . . . . . . . . . . . 185 . . . . . . Squads Dispatched 215 | . 1 . . 1 . 6 . 2 . . . . 4 . . . . 2 . 5 . . . . . 4 4 8 46 95 37 . Investigation 5 | . . . . . . . . 1 . . . . . . . . . . . . . . . . . 2 1 . 1 . . . Extermination 17 | . . . . . . 1 . 1 . . . . 2 . . . . . . 1 . . . . . . . 4 8 . . . Reinforcement 25 | . 1 . . 1 . 2 . . . . . . 2 . . . . . . 2 . . . . . 2 3 4 6 1 1 . Assault 163 | . . . . . . . . . . . . . . . . . . 2 . . . . . . . . . . 31 94 36 . Garrison 5 | . . . . . . 3 . . . . . . . . . . . . . 2 . . . . . . . . . . . . Intercept . | . . . . . . . . . . . . . . . . . . . . . . . . . . . . . . . . . Searches Triggered 1 | . . . . . . . . . . . . . 1 . . . . . . . . . . . . . . . . . . . Construction Impeded . | . . . . . . . . . . . . . . . . . . . . . . . . . . . . . . . . . Haulers Reinforced 5 | . . . . . . 1 . . . . . . . . . . . . . 1 . . . . . . 2 . . 1 . . Active Scanning Responses . | . . . . . . . . . . . . . . . . . . . . . . . . . . . . . . . . . Cargo Convoy Interrupts . | . . . . . . . . . . . . . . . . . . . . . . . . . . . . . . . . . Stealth | -11 -10 -10 -8 -8 -8 -6 -6 -6 -6 -6 -6 -5 -5 -5 -5 -5 -4 -4 -4 -4 -4 -4 -4 -3 -3 -3 -2 -2 -2 -1 -1 -1 --------- Run | Yrd Mat Sub Mat Sto Rec Fac Was Fac Low Low Dat Pro Fac Upp Upp Zhi Pro Fac Was Fac Upp Upp War Pro Res Qua Res Tes Frg Acc Com Ac0 Distress Signals 49 | . 2 . 2 5 3 1 . . . . . . 4 . . . . 1 . 2 . . 3 . . . 7 . 2 3 14 . Communications Jammed 4 | . . . . . . . . . . . . . . . . . . . . . . . . . . . . 1 3 . . . Distress Signals 3 | . . . . . . . . . . . . . . . . . . . . . . . . . . . . 1 2 . . . Times Spotted 1214 | . 25 7 32 41 9 4 . 11 10 4 . 9 19 1 12 . 6 9 6 10 7 5 69 5 1 18 29 10 277 336 212 30 Peak Tracking Total 24 | . 6 2 5 5 2 2 . 4 4 4 . 5 4 1 5 . 5 3 6 4 7 5 19 3 1 3 7 3 17 13 24 4 Tactical Retreats 49 | . . . 2 2 . . . 3 2 . . 2 2 1 3 . 2 1 . . . . 5 2 . . 4 1 6 9 2 . Traps | -11 -10 -10 -8 -8 -8 -6 -6 -6 -6 -6 -6 -5 -5 -5 -5 -5 -4 -4 -4 -4 -4 -4 -4 -3 -3 -3 -2 -2 -2 -1 -1 -1 ------- Run | Yrd Mat Sub Mat Sto Rec Fac Was Fac Low Low Dat Pro Fac Upp Upp Zhi Pro Fac Was Fac Upp Upp War Pro Res Qua Res Tes Frg Acc Com Ac0 Traps Triggered 34 | . . 3 . . . 1 . . . . . . . 1 . . . 1 . 1 . . . . . 2 . . 7 10 8 . Indirectly 3 | . . . . . . . . . . . . . . . . . . . . . . . . . . . . . 3 . . . Trap Hack Attempts . | . . . . . . . . . . . . . . . . . . . . . . . . . . . . . . . . . Triggered . | . . . . . . . . . . . . . . . . . . . . . . . . . . . . . . . . . Disarmed . | . . . . . . . . . . . . . . . . . . . . . . . . . . . . . . . . . Reprogrammed . | . . . . . . . . . . . . . . . . . . . . . . . . . . . . . . . . . Reused . | . . . . . . . . . . . . . . . . . . . . . . . . . . . . . . . . . Traps Extracted . | . . . . . . . . . . . . . . . . . . . . . . . . . . . . . . . . . Installed . | . . . . . . . . . . . . . . . . . . . . . . . . . . . . . . . . . Triggered . | . . . . . . . . . . . . . . . . . . . . . . . . . . . . . . . . . Machines | -11 -10 -10 -8 -8 -8 -6 -6 -6 -6 -6 -6 -5 -5 -5 -5 -5 -4 -4 -4 -4 -4 -4 -4 -3 -3 -3 -2 -2 -2 -1 -1 -1 ---------- Run | Yrd Mat Sub Mat Sto Rec Fac Was Fac Low Low Dat Pro Fac Upp Upp Zhi Pro Fac Was Fac Upp Upp War Pro Res Qua Res Tes Frg Acc Com Ac0 Machines Disabled 92 | . . 1 3 6 . 1 . . . . . . 4 . . . . 7 . 4 1 . 3 . . 10 . 3 31 10 5 3 Max in Single Turn 2 | . . 1 1 1 . . . . . . . . 2 . . . . . . 1 1 . 1 . . 2 . 1 2 2 2 1 Garrison Access 9 | . . . . . . . . . . . . . 1 . . . . 1 . . . . . . . 1 1 . 1 4 . . Phase Generator 1 | . . . . . . . . . . . . . . . . . . . . . . . . . . . . . . . 1 . Energy Cycler 1 | . . . . . . . . . . . . . . . . . . . . . . . . . . . . . . 1 . . Machines Repaired . | . . . . . . . . . . . . . . . . . . . . . . . . . . . . . . . . . Machines Dismantled 1 | . . . . 1 . . . . . . . . . . . . . . . . . . . . . . . . . . . . Machines Sabotaged . | . . . . . . . . . . . . . . . . . . . . . . . . . . . . . . . . . Overloaded Fab Kills . | . . . . . . . . . . . . . . . . . . . . . . . . . . . . . . . . . Hacking | -11 -10 -10 -8 -8 -8 -6 -6 -6 -6 -6 -6 -5 -5 -5 -5 -5 -4 -4 -4 -4 -4 -4 -4 -3 -3 -3 -2 -2 -2 -1 -1 -1 --------- Run | Yrd Mat Sub Mat Sto Rec Fac Was Fac Low Low Dat Pro Fac Upp Upp Zhi Pro Fac Was Fac Upp Upp War Pro Res Qua Res Tes Frg Acc Com Ac0 Machines Accessed 128 | . 4 2 12 12 16 4 . 8 . . 3 . 6 3 1 4 . 5 . 8 1 3 5 . 3 14 3 2 6 . 3 . Terminals 69 | . 3 . 9 9 6 3 . 4 . . . . 2 . . . . 3 . 6 1 . . . 2 10 1 2 5 . 3 . Fabricators 7 | . . . . . . . . 2 . . . . 2 . . . . 1 . 1 . . . . 1 . . . . . . . Repair Stations 5 | . . . 1 1 . . . 1 . . . . 1 . . . . . . . . . . . . 1 . . . . . . Recycling Units 16 | . 1 . 1 2 8 1 . 1 . . . . . . . . . 1 . 1 . . . . . . . . . . . . Scanalyzers 3 | . . . 1 . . . . . . . . . . . . . . . . . . . . . . 2 . . . . . . Garrison Access 5 | . . . . . . . . . . . . . 1 . . . . . . . . . . . . 1 2 . 1 . . . Total Hacks 332 | . 11 4 29 40 30 6 . 24 . . 21 . 11 7 1 17 . 8 . 17 7 7 14 . 7 44 6 2 12 . 7 . Successful 200 | . 6 4 13 25 24 1 . 11 . . 21 . 7 7 1 17 . 5 . 8 7 7 14 . 1 11 1 . 7 . 2 . Failed 132 | . 5 . 16 15 6 5 . 13 . . . . 4 . . . . 3 . 9 . . . . 6 33 5 2 5 . 5 . Catastrophic 32 | . 1 . 2 1 1 3 . 3 . . . . 3 . . . . 2 . 1 . . . . 3 5 3 2 1 . 1 . Database Lockouts . | . . . . . . . . . . . . . . . . . . . . . . . . . . . . . . . . . Manual 110 | . 4 . 14 17 22 2 . 14 . . . . 2 . . . . 2 . 3 . . 1 . . 11 3 . 10 . 5 . Terminals 175 | . 9 . 23 29 14 5 . 8 . . . . 2 . . . . 4 . 13 7 . . . 5 33 3 2 11 . 7 . Fabricators 23 | . . . . . . . . 10 . . . . 6 . . . . 3 . 2 . . . . 2 . . . . . . . Repair Stations 19 | . . . 2 8 . . . 3 . . . . 2 . . . . . . . . . . . . 4 . . . . . . Recycling Units 25 | . 2 . 3 3 10 1 . 3 . . . . . . . . . 1 . 2 . . . . . . . . . . . . Scanalyzers 5 | . . . 1 . . . . . . . . . . . . . . . . . . . . . . 4 . . . . . . Garrison Access 8 | . . . . . . . . . . . . . 1 . . . . . . . . . . . . 3 3 . 1 . . . Terminal Hacks 127 | . 4 4 4 11 8 1 . 2 . . 21 . . 7 1 17 . 2 . 6 7 7 14 . . 6 . . 4 . 1 . Record 39 | . . 3 . . 4 . . . . . 2 . . 5 . 5 . . . . 7 5 8 . . . . . . . . . Part Schematic 17 | . . . . . . . . 1 . . 11 . . . . 4 . . . 1 . . . . . . . . . . . . Robot Schematic 5 | . . . . . . . . . . . 5 . . . . . . . . . . . . . . . . . . . . . Robot Analysis 9 | . 2 . . 1 1 . . . . . . . . . . 4 . . . . . . . . . . . . 1 . . . Prototype ID Bank 17 | . 1 . . 1 . . . . . . 3 . . . . 4 . . . 2 . . 5 . . 1 . . . . . . Open Door 7 | . . . . 1 . . . . . . . . . 2 1 . . . . . . 2 1 . . . . . . . . . Branch Access Points 4 | . . . 1 . . . . 1 . . . . . . . . . 1 . 1 . . . . . . . . . . . . Terminal Index 1 | . . . 1 . . . . . . . . . . . . . . . . . . . . . . . . . . . . . Alert Level 2 | . . . . 1 . . . . . . . . . . . . . . . . . . . . . . . . 1 . . . Unreport Threat 6 | . . . 1 2 . 1 . . . . . . . . . . . . . . . . . . . 2 . . . . . . Locate Traps 3 | . 1 . . 2 . . . . . . . . . . . . . . . . . . . . . . . . . . . . Dispatch Records 1 | . . . . . . . . . . . . . . . . . . . . . . . . . . 1 . . . . . . Hauler Manifests 5 | . . . 1 1 . . . . . . . . . . . . . 1 . 1 . . . . . 1 . . . . . . Registered Components 3 | . . . . 1 . . . . . . . . . . . . . . . 1 . . . . . 1 . . . . . . Zone Layout 3 | . . . . 1 1 . . . . . . . . . . . . . . . . . . . . . . . 1 . . . Proto ID Catalog 2 | . . 1 . . . . . . . . . . . . . . . . . . . . . . . . . . 1 . . . Disengage Seal 1 | . . . . . . . . . . . . . . . . . . . . . . . . . . . . . . . 1 . Release Object 2 | . . . . . 2 . . . . . . . . . . . . . . . . . . . . . . . . . . . Fabricator Hacks 11 | . . . . . . . . 4 . . . . 3 . . . . 2 . 1 . . . . 1 . . . . . . . Network Status 6 | . . . . . . . . 1 . . . . 2 . . . . 1 . 1 . . . . 1 . . . . . . . Load Schematic 2 | . . . . . . . . 2 . . . . . . . . . . . . . . . . . . . . . . . . Build 3 | . . . . . . . . 1 . . . . 1 . . . . 1 . . . . . . . . . . . . . . Repair Station Hacks 14 | . . . 2 8 . . . . . . . . 2 . . . . . . . . . . . . 2 . . . . . . Scan Component 8 | . . . 1 4 . . . . . . . . 1 . . . . . . . . . . . . 2 . . . . . . Repair 6 | . . . 1 4 . . . . . . . . 1 . . . . . . . . . . . . . . . . . . . Recycling Unit Hacks 3 | . 1 . . 1 . . . 1 . . . . . . . . . . . . . . . . . . . . . . . . Retrieve Components 3 | . 1 . . 1 . . . 1 . . . . . . . . . . . . . . . . . . . . . . . . Scanalyzer 1 | . . . 1 . . . . . . . . . . . . . . . . . . . . . . . . . . . . . Insert Component 1 | . . . 1 . . . . . . . . . . . . . . . . . . . . . . . . . . . . . Garrison Access Hacks 3 | . . . . . . . . . . . . . 1 . . . . . . . . . . . . 1 1 . . . . . Seal Access 3 | . . . . . . . . . . . . . 1 . . . . . . . . . . . . 1 1 . . . . . Unauthorized Hacks 40 | . 1 . 6 5 15 . . 4 . . . . 1 . . . . 1 . 1 . . . . . 2 . . 3 . 1 . Terminals 24 | . 1 . 6 4 6 . . . . . . . . . . . . 1 . 1 . . . . . 2 . . 2 . 1 . Assimilate 2 | . . . . . . . . . . . . . . . . . . 1 . 1 . . . . . . . . . . . . Botnet 9 | . . . 1 3 1 . . . . . . . . . . . . . . . . . . . . 1 . . 2 . 1 . Operators 2 | . 1 . . . . . . . . . . . . . . . . . . . . . . . . 1 . . . . . . Skim 11 | . . . 5 1 5 . . . . . . . . . . . . . . . . . . . . . . . . . . . Fabricators 4 | . . . . . . . . 3 . . . . 1 . . . . . . . . . . . . . . . . . . . Prioritize 1 | . . . . . . . . 1 . . . . . . . . . . . . . . . . . . . . . . . . Haulers 2 | . . . . . . . . 1 . . . . 1 . . . . . . . . . . . . . . . . . . . Recompile 1 | . . . . . . . . 1 . . . . . . . . . . . . . . . . . . . . . . . . Repair Stations 1 | . . . . . . . . 1 . . . . . . . . . . . . . . . . . . . . . . . . Mechanics 1 | . . . . . . . . 1 . . . . . . . . . . . . . . . . . . . . . . . . Recycling Units 10 | . . . . 1 9 . . . . . . . . . . . . . . . . . . . . . . . . . . . Mask 4 | . . . . 1 3 . . . . . . . . . . . . . . . . . . . . . . . . . . . Tunnel 6 | . . . . . 6 . . . . . . . . . . . . . . . . . . . . . . . . . . . Scanalyzers . | . . . . . . . . . . . . . . . . . . . . . . . . . . . . . . . . . Garrison Access 1 | . . . . . . . . . . . . . . . . . . . . . . . . . . . . . 1 . . . Jam 1 | . . . . . . . . . . . . . . . . . . . . . . . . . . . . . 1 . . . Data Cores Recovered 2 | . . . . . . . . . . . . . . . . . . . . . . . . . . 1 . 1 . . . . Used 1 | . . . . . . . . . . . . . . . . . . . . . . . . . . 1 . . . . . . Hacking Detections 81 | . 3 . 11 10 7 3 . 7 . . . . 5 . . . . 5 . 5 1 . . . 3 13 1 2 4 . 1 . Full Trace Events 3 | . . . . . 1 . . . . . . . . . . . . . . . . . . . . 1 1 . . . . . Feedback Events . | . . . . . . . . . . . . . . . . . . . . . . . . . . . . . . . . . Feedback Blocked . | . . . . . . . . . . . . . . . . . . . . . . . . . . . . . . . . . Robot Schematics Acquired 11 | . . . . . . . . . . . 5 . . . . . . . . . . . . . . . . 2 4 . . . Robots Built . | . . . . . . . . . . . . . . . . . . . . . . . . . . . . . . . . . Authchips . | . . . . . . . . . . . . . . . . . . . . . . . . . . . . . . . . . Time . | . . . . . . . . . . . . . . . . . . . . . . . . . . . . . . . . . Total Robot Build Rating . | . . . . . . . . . . . . . . . . . . . . . . . . . . . . . . . . . Part Schematics Acquired 32 | . . . . . . . . 1 . . 11 . . . . 4 . . . 1 . . . . . . . 6 9 . . . Parts Built 5 | . . . . . . . . 2 . . . . 2 . . . . 1 . . . . . . . . . . . . . . Authchips 1 | . . . . . . . . 1 . . . . . . . . . . . . . . . . . . . . . . . . Time 228 | . . . . . . . . 95 . . . . 64 . . . . 69 . . . . . . . . . . . . . . Total Part Build Rating 35 | . . . . . . . . 10 . . . . 16 . . . . 9 . . . . . . . . . . . . . . Parts Repaired 6 | . . . 1 4 . . . . . . . . 1 . . . . . . . . . . . . . . . . . . . Time 198 | . . . 26 128 . . . . . . . . 44 . . . . . . . . . . . . . . . . . . . Parts Recycled . | . . . . . . . . . . . . . . . . . . . . . . . . . . . . . . . . . Recycled Matter . | . . . . . . . . . . . . . . . . . . . . . . . . . . . . . . . . . Retrieved Matter . | . . . . . . . . . . . . . . . . . . . . . . . . . . . . . . . . . Retrieved Components 21 | . 10 . . 10 . . . 1 . . . . . . . . . . . . . . . . . . . . . . . . Parts Scanalyzed . | . . . . . . . . . . . . . . . . . . . . . . . . . . . . . . . . . Part Schematics Acquired . | . . . . . . . . . . . . . . . . . . . . . . . . . . . . . . . . . Parts Damaged . | . . . . . . . . . . . . . . . . . . . . . . . . . . . . . . . . . Bothacking | -11 -10 -10 -8 -8 -8 -6 -6 -6 -6 -6 -6 -5 -5 -5 -5 -5 -4 -4 -4 -4 -4 -4 -4 -3 -3 -3 -2 -2 -2 -1 -1 -1 ------------ Run | Yrd Mat Sub Mat Sto Rec Fac Was Fac Low Low Dat Pro Fac Upp Upp Zhi Pro Fac Was Fac Upp Upp War Pro Res Qua Res Tes Frg Acc Com Ac0 Used RIF Installer . | . . . . . . . . . . . . . . . . . . . . . . . . . . . . . . . . . Robots Hacked . | . . . . . . . . . . . . . . . . . . . . . . . . . . . . . . . . . Non-combat . | . . . . . . . . . . . . . . . . . . . . . . . . . . . . . . . . . Combat . | . . . . . . . . . . . . . . . . . . . . . . . . . . . . . . . . . Robot Hacks Applied . | . . . . . . . . . . . . . . . . . . . . . . . . . . . . . . . . . Relay Couplers Released 6 | . . . . . . . . . . . . . . . . . . 3 . . . . . . . . . . . 3 . . Machine Destruction 6 | . . . . . . . . . . . . . . . . . . 3 . . . . . . . . . . . 3 . . Fabnet Peak Effective % . | . . . . . . . . . . . . . . . . . . . . . . . . . . . . . . . . . Robots Rewired 16 | . . . . . 14 . . . . . . . . . . . . 1 . . . . . . . . . 1 . . . . Allies Hacked . | . . . . . . . . . . . . . . . . . . . . . . . . . . . . . . . . . Hacks Repelled . | . . . . . . . . . . . . . . . . . . . . . . . . . . . . . . . . . Allies | -11 -10 -10 -8 -8 -8 -6 -6 -6 -6 -6 -6 -5 -5 -5 -5 -5 -4 -4 -4 -4 -4 -4 -4 -3 -3 -3 -2 -2 -2 -1 -1 -1 -------- Run | Yrd Mat Sub Mat Sto Rec Fac Was Fac Low Low Dat Pro Fac Upp Upp Zhi Pro Fac Was Fac Upp Upp War Pro Res Qua Res Tes Frg Acc Com Ac0 Total Allies 47 | . . . . 10 14 . . . . . . . . . . . . 2 19 1 . . . . . . . 1 . . . . Largest Group 21 | . . . . 10 21 13 1 1 . . . . . . . . . 2 19 12 . . . . . . . 1 . . . . Highest-Rated Group 684 | . . . . 173 398 213 15 15 . . . . . . . . . 75 684 426 . . . . . . . 148 . . . . Highest-Rated Ally 148 | . . . . 29 34 27 15 15 . . . . . . . . . 49 50 46 . . . . . . . 148 . . . . Total Orders 13 | . . . . . 13 . . . . . . . . . . . . . . . . . . . . . . . . . . . STAY 4 | . . . . . 4 . . . . . . . . . . . . . . . . . . . . . . . . . . . FOLLOW 9 | . . . . . 9 . . . . . . . . . . . . . . . . . . . . . . . . . . . Ally Attacks 280 | . . . . 18 35 63 . 3 . . . . . . . . . 7 86 66 . . . . . . . 2 . . . . Total Damage 9640 | . . . . 253 481 1677 . 43 . . . . . . . . . 868 4360 1769 . . . . . . . 189 . . . . Kills 53 | . . . . 4 5 13 . . . . . . . . . . . 5 11 14 . . . . . . . 1 . . . . Allies Corrupted 1 | . . . . . . . . . . . . . . . . . . . . . . . . . . . . 1 . . . . Allies Melted 1 | . . . . . . . . . . . . . . . . . . . . . . . 1 . . . . . . . . . Intel | -11 -10 -10 -8 -8 -8 -6 -6 -6 -6 -6 -6 -5 -5 -5 -5 -5 -4 -4 -4 -4 -4 -4 -4 -3 -3 -3 -2 -2 -2 -1 -1 -1 ------- Run | Yrd Mat Sub Mat Sto Rec Fac Was Fac Low Low Dat Pro Fac Upp Upp Zhi Pro Fac Was Fac Upp Upp War Pro Res Qua Res Tes Frg Acc Com Ac0 Active Infowar (turns) 24208 | 48 61 2282 1621 332 . 545 691 422 713 691 60 693 710 1627 563 . . 160 432 402 321 489 682 133 138 1961 405 1257 2386 1290 2535 558 Optics 523 | . . . . . . . . . . . . . . . . . . . . . . . . . . . . . 2 . . 521 Sensors 5699 | . . . 513 . . . . . . . . . . . . . . . . . . . . 104 136 1939 391 1137 1479 . . . IFF 7997 | . . . . . . . . . 562 688 60 612 425 1626 563 . . . . . . . . . . . . . . 655 2535 271 Terrain 129 | . . . . . . . . . . . . . . . . . . . . . . . . . . . 129 . . . . . Seismic 10338 | 48 61 2282 1551 332 . 545 691 422 668 685 58 531 603 151 . . . 160 256 394 321 489 77 13 . . . . . . . . Cloaking 4613 | . . . . . . . . . . . . . . . . . . . 207 402 . . 605 133 103 263 9 1009 1230 652 . . Jamming 1501 | . . . . . . . . . . . . . . . . . . . . . . . . . 34 417 . 71 979 . . . Robot Analysis Total 9 | . 2 . . 1 1 . . . . . . . . . . 4 . . . . . . . . . . . . 1 . . . Derelict Logs Recovered 12 | . . . . . . . . . 2 2 . 2 . 1 2 . . . . . 2 1 . . . . . . . . . . Drone Launches . | . . . . . . . . . . . . . . . . . . . . . . . . . . . . . . . . . Drone Recoveries . | . . . . . . . . . . . . . . . . . . . . . . . . . . . . . . . . . Exploration | -11 -10 -10 -8 -8 -8 -6 -6 -6 -6 -6 -6 -5 -5 -5 -5 -5 -4 -4 -4 -4 -4 -4 -4 -3 -3 -3 -2 -2 -2 -1 -1 -1 ------------- Run | Yrd Mat Sub Mat Sto Rec Fac Was Fac Low Low Dat Pro Fac Upp Upp Zhi Pro Fac Was Fac Upp Upp War Pro Res Qua Res Tes Frg Acc Com Ac0 Turns Passed 46212 | 117 753 2719 1950 2537 5971 585 691 529 948 713 62 751 1203 1632 732 247 309 299 447 407 344 529 1178 133 155 2517 769 1355 3683 5254 6091 602 Spaces Moved 40654 | 58 371 930 914 837 2819 488 627 644 1168 880 92 1011 793 1456 669 181 287 442 526 729 729 958 1627 231 274 2790 548 812 3652 6270 6312 529 Core 18 | 18 . . . . . . . . . . . . . . . . . . . . . . . . . . . . . . . . Treads 24852 | 40 371 685 297 837 1898 369 358 89 1168 880 92 1011 509 . . . . 7 446 729 729 958 1627 231 274 1900 520 202 3211 2179 3020 215 Legs 2727 | . . . . . . . . . . . . . . . . . . . . . . . . . . . . 184 95 2134 . 314 Wheels 1783 | . . 245 617 . 921 . . . . . . . . . . . . . . . . . . . . . . . . . . . Hover 9831 | . . . . . . 119 269 555 . . . . 284 1456 669 181 287 11 . . . . . . . 322 3 426 . 1957 3292 . Flight 1443 | . . . . . . . . . . . . . . . . . . 424 80 . . . . . . 568 25 . 346 . . . Fastest Speed 32 | 50 160 160 145 243 143 103 62 62 62 62 62 62 62 101 101 101 101 45 43 43 43 43 43 43 43 32 47 58 35 35 35 41 Average Speed 78 | 150 160 270 179 243 186 103 85 62 62 62 62 62 108 101 101 101 101 48 43 43 43 43 43 43 43 58 109 145 55 35 37 64 Slowest Speed 340 | 200 160 340 325 243 325 143 103 77 62 62 62 62 139 101 101 101 101 101 45 43 43 43 43 43 43 117 157 157 58 35 41 81 Overloaded Moves . | . . . . . . . . . . . . . . . . . . . . . . . . . . . . . . . . . Propulsion Burnouts . | . . . . . . . . . . . . . . . . . . . . . . . . . . . . . . . . . Robots Hopped 4 | . . . . . . . . . . . . . . . . . . 3 . . . . . . . . . . 1 . . . Potential Cave-ins . | . . . . . . . . . . . . . . . . . . . . . . . . . . . . . . . . . Cave-ins Triggered . | . . . . . . . . . . . . . . . . . . . . . . . . . . . . . . . . . Teleports 2 | . . . . . . . . . . . . . . . . . . . . . . . . . . . . . 1 . 1 . Exploration Rate (%) 62 | 5 59 44 70 97 95 17 95 17 96 93 68 92 17 97 78 60 48 12 94 16 95 92 92 41 9 96 23 89 50 89 85 37 Regions Visited 32 Branch Regions 20 Pre-discovered Areas 18 | . . 2 . . 8 . . . . . 1 1 . . . 3 . . . . 1 2 . . . . . . . . . . Known Exits Taken 14 | . . . 1 . 1 . . 1 1 1 . 1 1 . . . . . . 1 . . . 1 1 1 1 1 . 1 . . Unknown Exits Taken 14 | 1 1 1 . 1 . . . . . . 1 . . 1 1 1 1 . . . 1 1 1 . . . . . 1 . 1 . Scrap Searched 39 | . . 14 . . . . . . 4 5 . 4 . 1 2 . 1 . . . 4 2 . 2 . . . . . . . . Spaces Dug 290 | . . . 22 . 1 8 . 20 . 13 . 26 41 10 . . 30 3 . 10 1 3 . 36 5 1 3 4 27 20 6 . Terrain Destroyed 1488 | . . 4 54 30 8 19 3 26 31 44 . 63 70 24 15 . 60 5 . 15 1 47 3 36 7 42 17 19 201 101 245 298 Melee . | . . . . . . . . . . . . . . . . . . . . . . . . . . . . . . . . . Projectile 789 | . . 4 15 . 8 19 3 16 19 18 . 35 11 24 . . 2 5 . 15 1 4 3 . 7 9 17 19 181 40 26 288 AOE 699 | . . . 39 30 . . . 10 12 26 . 28 59 . 15 . 58 . . . . 43 . 36 . 33 . . 20 61 219 10 Terrain Rammed . | . . . . . . . . . . . . . . . . . . . . . . . . . . . . . . . . . Walls Destroyed . | . . . . . . . . . . . . . . . . . . . . . . . . . . . . . . . . . Machines Disabled . | . . . . . . . . . . . . . . . . . . . . . . . . . . . . . . . . . Actions | -11 -10 -10 -8 -8 -8 -6 -6 -6 -6 -6 -6 -5 -5 -5 -5 -5 -4 -4 -4 -4 -4 -4 -4 -3 -3 -3 -2 -2 -2 -1 -1 -1 --------- Run | Yrd Mat Sub Mat Sto Rec Fac Was Fac Low Low Dat Pro Fac Upp Upp Zhi Pro Fac Was Fac Upp Upp War Pro Res Qua Res Tes Frg Acc Com Ac0 Total 53114 | 79 452 1082 1133 1204 3409 547 768 748 1340 1033 95 1105 1097 1594 709 226 300 498 743 789 749 1057 2010 263 295 3599 658 935 4979 9108 9785 725 Wait 8231 | . 19 82 75 228 353 6 89 49 98 127 . 52 205 94 17 1 1 2 198 2 2 60 240 16 2 625 6 9 442 2150 2978 3 Move 40616 | 57 370 929 913 836 2818 488 626 643 1167 879 91 1010 792 1455 668 180 286 437 525 728 728 957 1626 230 273 2789 547 811 3649 6269 6310 529 Hop 3 | . . . . . . . . . . . . . . . . . . 2 . . . . . . . . . . 1 . . . Pick Up 418 | 7 8 19 25 14 14 10 7 10 1 3 . 1 13 3 1 7 1 10 6 5 2 8 15 3 2 28 10 15 73 53 34 10 Fast Attach 129 | 6 3 1 11 11 1 . . . 2 . 1 . 4 2 . 5 . 1 . 4 1 1 5 1 1 12 1 5 19 18 12 1 Attach 150 | 1 . 9 5 . 4 2 1 2 . 1 . . 5 3 3 2 . 4 . 1 . 1 2 3 1 5 4 3 40 18 24 6 Detach 119 | . 3 4 1 . 10 . 1 1 . . . . 6 2 2 1 1 1 1 1 . . . 2 . 4 4 2 35 13 20 4 Swap 453 | . 1 5 23 16 3 4 3 14 19 10 2 12 8 . . 2 2 3 5 10 3 7 8 3 4 25 16 21 110 61 42 11 Drop 440 | 1 3 5 30 21 22 8 11 8 4 2 1 1 12 6 1 8 2 8 6 6 3 8 19 4 . 39 11 18 78 52 34 8 Fire 2355 | 2 45 25 47 59 115 24 20 20 49 11 . 27 46 26 17 20 7 21 2 24 9 15 95 1 12 69 57 48 519 472 298 153 Melee 8 | . . 3 . . . . . . . . . . . . . . . . . . . . . . . . . . 5 . . . Ram 3 | . . . . . . . . . . . . . . 3 . . . . . . . . . . . . . . . . . . Kick . | . . . . . . . . . . . . . . . . . . . . . . . . . . . . . . . . . Crush 43 | 5 . . 3 10 . 4 . . . . . 2 6 . . . . . . 4 1 . . . . 2 1 . 5 . . . Escape Stasis 9 | . . . . . . . . . . . . . . . . . . . . . . . . . . . . . 3 2 4 . Rewire 119 | . . . . 1 68 . 10 . . . . . . . . . . 8 . . . . . . . . . 3 . . 29 . Trap . | . . . . . . . . . . . . . . . . . . . . . . . . . . . . . . . . . Miscellaneous 18 | . . . . 8 1 1 . 1 . . . . . . . . . 1 . 4 . . . . . 1 1 . . . . . Route ------- -11/Scrapyard -10/Materials (discovered 3 exits: [*Mat x2] / *Sub) -10/Subcaves -8/Materials (discovered 5 exits: *Fac x3 / *Sto x2) -8/Storage (discovered 2 exits: *Fac / *Rec) -8/Recycling -6/Factory (discovered 4 exits: Fac x2 / *Low x2) -6/Waste -6/Factory (discovered 3 exits: *Fac / *Low x2) -6/Lower Caves -6/Lower Caves (discovered 2 exits: *Fac / *Dat) -6/Data Miner -5/Proximity Caves -5/Factory (discovered 2 exits: *Upp / Ext) -5/Upper Caves -5/Upper Caves (discovered 2 exits: *Fac / *Zhi) -5/Zhirov -4/Proximity Caves -4/Factory (discovered 3 exits: *Res / Upp x2) -4/Waste -4/Factory (discovered 2 exits: *Upp x2) -4/Upper Caves -4/Upper Caves (discovered 2 exits: *Res / *War) -4/Warlord -3/Proximity Caves -3/Research -3/Quarantine -2/Research -2/Testing (discovered 3 exits: [*Acc] / [*Sec] / *Frg) -2/Protoforge -1/Access (discovered 2 exits: [*Sur] / *Com) -1/Command (discovered 3 exits: [*Sur x2] / [*Ac0]) -1/Access_0 History --------- Turn | Location | Event 19 | -11/Scrapyard | Discovered new exit (range 16) 118 | -11/Scrapyard | Entered Materials 314 | -10/Materials | Build established: Mutant 414 | -10/Materials | Discovered new exit (range 16) 754 | -10/Materials | Discovered new exit (range 16) 860 | -10/Materials | Discovered new exit (range 8) 871 | -10/Materials | Entered Subcaves 969 | -10/Subcaves | Shifting Twisted Machinery released Battle Rifle 984 | -10/Subcaves | Shifting Twisted Machinery released Sub. Shrapnel Launcher 1540 | -10/Subcaves | Core integrity fell below 50% 2194 | -10/Subcaves | A swath of the cavern ceiling suddenly collapsed 2480 | -10/Subcaves | Ambushed by angry Subdweller bent on revenge 2631 | -10/Subcaves | Learned location of Zion (-7) 2631 | -10/Subcaves | Met a Zionite searching for "candidates" 2779 | -10/Subcaves | Shifting Twisted Machinery released Sub. Power Source 2799 | -10/Subcaves | Discovered new exit (range 2) 2802 | -10/Subcaves | Shifting Twisted Machinery released Sub. Machine Gun 2824 | -10/Subcaves | Visited Clippyterm 2833 | -10/Subcaves | Learned location of Deep Caves (-7) 3256 | -10/Subcaves | Visited 4L-MR0's lab 3277 | -10/Subcaves | Found Meta Core 3590 | -10/Subcaves | Entered Materials 3590 | -8/Materials | Evolved 4 slots: Propulsion x1, Utility x2, Weapon x1 3943 | -8/Materials | Identified exit to Storage 4381 | -8/Materials | Discovered new exit (range 3) 4631 | -8/Materials | Build established: Tank 4661 | -8/Materials | Learned Factory trap positions 4729 | -8/Materials | Learned Factory stockpile data 4841 | -8/Materials | Learned Storage terminal intel 4885 | -8/Materials | Learned Storage emergency access door positions 4945 | -8/Materials | Learned 4 Factory zone layouts 4981 | -8/Materials | Learned location of 1 exit from Recycling 5061 | -8/Materials | Discovered new exit (range 8) 5082 | -8/Materials | Learned 2 Lower Caves zone layouts 5147 | -8/Materials | Identified exit to Factory 5165 | -8/Materials | Repaired Seismic Detector 5540 | -8/Materials | Entered Storage 5542 | -8/Storage | Loaded intel: 13 terminal locations 6384 | -8/Storage | Used back door to open Recycling access 6384 | -8/Storage | Discovered new exit (range 5) 6947 | -8/Storage | Repaired Arm. Treads 6998 | -8/Storage | Repaired Lgt. Treads 7025 | -8/Storage | Repaired Lgt. Treads 7065 | -8/Storage | Repaired Hrd. Medium Armor Plating 7308 | -8/Storage | Assisted by bots powering up and referring to "LRC-V3" 7613 | -8/Storage | Build established: Commander-Tank 8077 | -8/Storage | Entered Recycling 8077 | -8/Recycling | Accompanied by 10 allies 8078 | -8/Recycling | Identified exit to Factory 9212 | -8/Recycling | Learned location of 2 exits from Lower Caves 9415 | -8/Recycling | Learned 2 Storage zone layouts 9439 | -8/Recycling | Learned location of 2 exits from Factory 9697 | -8/Recycling | Entered Scraplab 9711 | -8/Recycling | Found Prototype Device 9711 | -8/Recycling | Identified Scrap Engine 10914 | -8/Recycling | Build established: Commander-Construct 12625 | -8/Recycling | Murdered 3 allies 14048 | -8/Recycling | Entered Factory 14048 | -6/Factory | Accompanied by 13 allies 14048 | -6/Factory | Evolved 4 slots: Power x1, Propulsion x2, Utility x1 14049 | -6/Factory | Identified exit to Lower Caves 14050 | -6/Factory | Identified exit to Factory 14052 | -6/Factory | Loaded intel: 86 trap records 14321 | -6/Factory | Garrison activated, responded to threat 14375 | -6/Factory | Lost 9 allies 14633 | -6/Factory | Sucked down chute 14633 | -6/Factory | Entered Waste 14633 | -6/Waste | The area was eerily silent 14638 | -6/Waste | 1 allies followed down the chute 14789 | -6/Waste | Build established: Construct 14814 | -6/Waste | Discovered new exit (range 13) 15324 | -6/Waste | Entered Factory 15324 | -6/Factory | Accompanied by 1 ally 15578 | -6/Factory | Discovered exit to Factory (range 15) 15828 | -6/Factory | Fabricated Weapon Mount? 15853 | -6/Factory | Entered Lower Caves 15854 | -6/Lower Caves | Identified exit to Lower Caves 16363 | -6/Lower Caves | Learned Factory emergency access door positions 16653 | -6/Lower Caves | Learned Factory non-interactive machine intel 16801 | -6/Lower Caves | Entered another Lower Caves area 16802 | -6/Lower Caves | Identified exit to Data Miner 16842 | -6/Lower Caves | Discovered exit to Factory (range 10) 17121 | -6/Lower Caves | Learned Factory emergency access door positions 17145 | -6/Lower Caves | Learned Factory trap positions 17514 | -6/Lower Caves | Entered Data Miner 17515 | -6/Data Miner | Discovered new exit (range 6) 17527 | -6/Data Miner | Met Data Miner 17539 | -6/Data Miner | Learned location of Section 7 (-2) 17539 | -6/Data Miner | Acquired the access code to Warlord's prototype stash 17548 | -6/Data Miner | Received God Mode back door access code from Data Miner 17576 | -6/Data Miner | Entered Proximity Caves 17579 | -5/Proximity Caves | Spotter reported a threat 17579 | -5/Proximity Caves | Spotter reported a threat 17687 | -5/Proximity Caves | Learned location of Armory (-3) 17764 | -5/Proximity Caves | Spotter reported a threat 17889 | -5/Proximity Caves | Spotted B-75 Beast 18235 | -5/Proximity Caves | Discovered exit to Factory (range 12) 18242 | -5/Proximity Caves | Learned Factory security intel 18327 | -5/Proximity Caves | Entered Factory 18327 | -5/Factory | Evolved 2 slots: Utility x1, Weapon x1 18328 | -5/Factory | Identified exit to Extension 18329 | -5/Factory | Loaded intel: 107 trap records 18332 | -5/Factory | Loaded intel: 192 non-interactive machine locations 18684 | -5/Factory | Found Prototype Launcher 18687 | -5/Factory | Found Prototype Launcher 18771 | -5/Factory | Fabricated Cmb. Antigrav System? 18927 | -5/Factory | Search patrols dispatched 18967 | -5/Factory | Repaired Hrd. Heavy Armor Plating 19345 | -5/Factory | Discovered new exit (range 3) 19447 | -5/Factory | Identified exit to Upper Caves 19530 | -5/Factory | Entered Upper Caves 20961 | -5/Upper Caves | Discovered new exit (range 12) 20997 | -5/Upper Caves | Entered an active Warlord outpost 21011 | -5/Upper Caves | Learned 8 Research zone layouts 21011 | -5/Upper Caves | Learned Extension trap positions 21011 | -5/Upper Caves | Learned Armory stockpile data 21011 | -5/Upper Caves | Learned Factory terminal intel 21053 | -5/Upper Caves | Learned Factory stockpile data 21162 | -5/Upper Caves | Entered another Upper Caves area 21162 | -5/Upper Caves | Discovered new exit (range 12) 21541 | -5/Upper Caves | Attracted the attention of an 0b10 checkpoint 21725 | -5/Upper Caves | Identified Rocket Array (x2) 21776 | -5/Upper Caves | Learned Factory emergency access door positions 21848 | -5/Upper Caves | Discovered new exit (range 11) 21855 | -5/Upper Caves | Learned location of 1 exit from Factory 21894 | -5/Upper Caves | Entered Zhirov 21894 | -5/Zhirov | Discovered new exit (range 3) 21935 | -5/Zhirov | Learned location of Quarantine (-3) 21958 | -5/Zhirov | Found Alien Artifact 21958 | -5/Zhirov | Identified Integrated Reactor 21958 | -5/Zhirov | Installed Integrated Reactor, increased core energy generation (+10) 21974 | -5/Zhirov | Found Alien Artifact 22141 | -5/Zhirov | Entered Proximity Caves 22437 | -4/Proximity Caves | Discovered new exit (range 10) 22450 | -4/Proximity Caves | Entered Factory 22450 | -4/Factory | Evolved 2 slots: Power x1, Propulsion x1 22451 | -4/Factory | Identified exit to Upper Caves 22451 | -4/Factory | Attached Meta Core, gained temporary slots: Propulsion, Utility, Weapon 22454 | -4/Factory | Loaded intel: 26 terminal locations 22581 | -4/Factory | Discovered new exit (range 2) 22658 | -4/Factory | Spotted B-86 Titan 22701 | -4/Factory | Fabricated Adv. Heavy Siege Treads? 22749 | -4/Factory | Manually triggered Chute Trap 22749 | -4/Factory | Sucked down chute 22749 | -4/Factory | Entered Waste 22864 | -4/Waste | Spotted C-40 Crusher 22870 | -4/Waste | Spotted C-40 Crusher 22871 | -4/Waste | Spotted C-40 Crusher 22891 | -4/Waste | Spotted C-40 Crusher 22891 | -4/Waste | Spotted C-40 Crusher 22893 | -4/Waste | Spotted C-40 Crusher 22906 | -4/Waste | Discovered new exit (range 13) 22934 | -4/Waste | Warlord forces began an assault 22939 | -4/Waste | Allies destroyed C-40 Crusher 22957 | -4/Waste | Allies destroyed C-40 Crusher 22959 | -4/Waste | Allies destroyed C-40 Crusher 22961 | -4/Waste | Destroyed C-40 Crusher 22990 | -4/Waste | Lost 7 allies 23196 | -4/Waste | Entered Factory 23196 | -4/Factory | Accompanied by 12 allies 23434 | -4/Factory | Garrison activated, responded to threat 23478 | -4/Factory | Lost 3 allies 23603 | -4/Factory | Entered Upper Caves 23721 | -4/Upper Caves | Learned Research stockpile data 23850 | -4/Upper Caves | Discovered new exit (range 6) 23928 | -4/Upper Caves | Attracted the attention of an 0b10 base 23930 | -4/Upper Caves | Learned Factory garrison access intel 23930 | -4/Upper Caves | Learned Armory stockpile data 23930 | -4/Upper Caves | Learned Factory emergency access door positions 23930 | -4/Upper Caves | Learned location of 2 exits from Lower Caves 23947 | -4/Upper Caves | Entered another Upper Caves area 23948 | -4/Upper Caves | Identified exit to Research 24096 | -4/Upper Caves | Found Imp. Powered Armor 24102 | -4/Upper Caves | Found Imp. Powered Armor 24200 | -4/Upper Caves | Entered an active Warlord outpost 24205 | -4/Upper Caves | Learned Armory trap positions 24205 | -4/Upper Caves | Learned Factory security intel 24205 | -4/Upper Caves | Learned Armory security intel 24205 | -4/Upper Caves | Learned Factory terminal intel 24376 | -4/Upper Caves | Discovered new exit (range 15) 24476 | -4/Upper Caves | Entered Warlord 24542 | -4/Warlord | Opened Warlord's prototype stash 24551 | -4/Warlord | Found Prototype Hackware 24555 | -4/Warlord | Found Prototype Processor 24560 | -4/Warlord | Identified Exp. Target Analyzer 24602 | -4/Warlord | Identified Ghost Barrier 24651 | -4/Warlord | Learned Research trap positions 24651 | -4/Warlord | Learned Research emergency access door positions 24651 | -4/Warlord | Learned 4 Command zone layouts 24652 | -4/Warlord | Learned Factory scanalyzer intel 24652 | -4/Warlord | Learned Armory fabricator intel 24652 | -4/Warlord | Learned Armory repair station intel 24652 | -4/Warlord | Learned Research garrison access intel 24680 | -4/Warlord | Met Warlord 24686 | -4/Warlord | Warlord's base attacked by MAIN.C 24704 | -4/Warlord | Found Prototype Energy Gun 24704 | -4/Warlord | Identified Vortex Rifle 24712 | -4/Warlord | Found Vortex Rifle 24875 | -4/Warlord | Spotted B-90 Cyclops 24996 | -4/Warlord | Warlord forces counterattacked 25038 | -4/Warlord | P-70 Sage assimilated allied 6G-MRS(g) 25053 | -4/Warlord | Spotted Striker 25127 | -4/Warlord | Spotted Executioner 25131 | -4/Warlord | Spotted B-90 Cyclops 25148 | -4/Warlord | P-70 Sage assimilated allied 1R-JA6(Y) 25167 | -4/Warlord | P-70 Sage assimilated allied QU-XLP(Y) 25171 | -4/Warlord | Spotted Executioner 25178 | -4/Warlord | P-70 Sage assimilated allied FN-TC7(Y) 25238 | -4/Warlord | Lost 38 allies 25361 | -4/Warlord | Warlord base infiltrated, sounded retreat 25440 | -4/Warlord | Found Corrupted Prototype Ballistic Cannon 25501 | -4/Warlord | Lost 3 allies 25508 | -4/Warlord | Found Adv. Kinecellerator 25510 | -4/Warlord | Spotted Striker 25514 | -4/Warlord | Spotted Executioner 25525 | -4/Warlord | Spotted Executioner 25543 | -4/Warlord | Discovered new exit (range 15) 25548 | -4/Warlord | Found Corrupted Quantum Capacitor 25576 | -4/Warlord | Lost 4 allies 25647 | -4/Warlord | Spotted Striker 25654 | -4/Warlord | Entered Proximity Caves 25671 | -3/Proximity Caves | Ambushed by research squad 25757 | -3/Proximity Caves | Discovered exit to Research (range 13) 25787 | -3/Proximity Caves | Entered Research 25787 | -3/Research | Evolved 2 slots: Utility x2 25789 | -3/Research | Loaded intel: 87 trap records 25792 | -3/Research | Loaded intel: 4 garrison access locations 25888 | -3/Research | Discovered new exit (range 13) 25917 | -3/Research | Identified exit to Quarantine 25942 | -3/Research | Entered Quarantine 25953 | -3/Quarantine | Found Alien Artifact 25989 | -3/Quarantine | Discovered new exit (range 16) 25997 | -3/Quarantine | Identified exit to Research 26060 | -3/Quarantine | Build established: Hacker-Construct 26147 | -3/Quarantine | Cryocooling Duct disabled 26162 | -3/Quarantine | Ambient heat levels rising (+20) 26162 | -3/Quarantine | Non-combat units ordered to evacuate 26238 | -3/Quarantine | Cryocooling Duct disabled 26253 | -3/Quarantine | Ambient heat levels rising (+20) 26253 | -3/Quarantine | Combat units ordered to evacuate 26353 | -3/Quarantine | Quarantine Guard activated 26423 | -3/Quarantine | Found Alien Artifact 26626 | -3/Quarantine | Spotted Quarantine Guard 26633 | -3/Quarantine | Destroyed Quarantine Guard 26636 | -3/Quarantine | Spotted Quarantine Guard 26644 | -3/Quarantine | Destroyed Quarantine Guard 26665 | -3/Quarantine | Spotted Quarantine Guard 26666 | -3/Quarantine | Destroyed Quarantine Guard 26677 | -3/Quarantine | Spotted Quarantine Guard 26678 | -3/Quarantine | Destroyed Quarantine Guard 26790 | -3/Quarantine | Found Alien Artifact 26813 | -3/Quarantine | Spotted Quarantine Guard 26828 | -3/Quarantine | Destroyed Quarantine Guard 26836 | -3/Quarantine | Spotted Quarantine Guard 26845 | -3/Quarantine | Destroyed Quarantine Guard 26859 | -3/Quarantine | Spotted Quarantine Guard 26860 | -3/Quarantine | Spotted Quarantine Guard 26861 | -3/Quarantine | Destroyed Quarantine Guard 26863 | -3/Quarantine | Destroyed Quarantine Guard 27502 | -3/Quarantine | Spotted Quarantine Guard 27509 | -3/Quarantine | Destroyed Quarantine Guard 27734 | -3/Quarantine | Spotted Quarantine Guard 27743 | -3/Quarantine | Destroyed Quarantine Guard 27755 | -3/Quarantine | Spotted Quarantine Guard 27797 | -3/Quarantine | Destroyed Quarantine Guard 28301 | -3/Quarantine | Destroyed Quarantine Guard 28459 | -3/Quarantine | Entered Research 28459 | -2/Research | Warlord forces began assault on 0b10 28459 | -2/Research | Evolved 2 slots: Utility x2 28480 | -2/Research | Identified Phase Armor 28560 | -2/Research | Found Prototype Launcher 28560 | -2/Research | Identified Enh. Gamma Bomb Array 28569 | -2/Research | Research machine network offline 28599 | -2/Research | Lost 5 allies 28652 | -2/Research | Found Enh. Gamma Bomb Array 28910 | -2/Research | Lost 4 allies 28939 | -2/Research | Spotted Striker 28946 | -2/Research | Destroyed Striker 29002 | -2/Research | Lost 3 allies 29044 | -2/Research | Borebot progress halted 29093 | -2/Research | Spotted Striker 29102 | -2/Research | Spotted Striker 29108 | -2/Research | Destroyed Striker 29111 | -2/Research | Destroyed Striker 29166 | -2/Research | Borebot progress halted 29179 | -2/Research | Spotted Striker 29207 | -2/Research | Discovered new exit (range 12) 29212 | -2/Research | Identified exit to Testing 29221 | -2/Research | Destroyed Striker 29228 | -2/Research | Entered Testing 29405 | -2/Testing | Spotted Alpha 7 29429 | -2/Testing | Destroyed Alpha 7 29511 | -2/Testing | Build established: Construct 29747 | -2/Testing | Found Launcher Loader 29934 | -2/Testing | Found Prototype Device 29934 | -2/Testing | Identified Exp. Hardlight Generator 30015 | -2/Testing | Rewired PY-XTXM3ZFJDS 30060 | -2/Testing | Found Prototype Ballistic Cannon 30068 | -2/Testing | Identified Omega Cannon 30111 | -2/Testing | Found Prototype Processor 30113 | -2/Testing | Identified Exp. Core Analyzer 30115 | -2/Testing | Found Prototype Processor 30149 | -2/Testing | Identified Exp. Signal Interpreter 30260 | -2/Testing | Found Prototype Protection 30300 | -2/Testing | Discovered new exit (range 15) 30370 | -2/Testing | Found Prototype Energy Gun 30370 | -2/Testing | Identified Tachyon Dispersion Ray 30539 | -2/Testing | Spotted Fortress 30579 | -2/Testing | Discovered new exit (range 5) 30579 | -2/Testing | Discovered new exit (range 6) 30580 | -2/Testing | Identified exit to Protoforge 30583 | -2/Testing | Entered Protoforge 30643 | -2/Protoforge | Spotted Hotshot 30697 | -2/Protoforge | Spotted B-90 Cyclops 31237 | -2/Protoforge | Discovered new exit (range 7) 31296 | -2/Protoforge | Found Prototype Device 31297 | -2/Protoforge | Found Prototype Device 31299 | -2/Protoforge | Found Prototype Device 31356 | -2/Protoforge | Spotted Hotshot 31364 | -2/Protoforge | Spotted Hotshot 31364 | -2/Protoforge | Spotted Hotshot 31364 | -2/Protoforge | Spotted Hotshot 31368 | -2/Protoforge | Destroyed Hotshot 31369 | -2/Protoforge | Destroyed Hotshot 31369 | -2/Protoforge | Superfortress began startup sequence 31369 | -2/Protoforge | Scanned by Researcher 31370 | -2/Protoforge | Destroyed Hotshot 31371 | -2/Protoforge | Destroyed Hotshot 31382 | -2/Protoforge | Identified Centrium Heavy Armor Plating 31404 | -2/Protoforge | System corruption reached 10% 31465 | -2/Protoforge | Identified Transdimensional Reconstructor 31465 | -2/Protoforge | Identified Cep. Recoil Nullifier (x3) 31468 | -2/Protoforge | Found Prototype Device 31472 | -2/Protoforge | Found Cep. Core Shell 31480 | -2/Protoforge | Spotted Immortal 31517 | -2/Protoforge | Found Cep. RG22 Armor 31519 | -2/Protoforge | Found Faulty Cep. RG22 Armor 31548 | -2/Protoforge | Found Cep. Core Shell 31561 | -2/Protoforge | Spotted Decapitator 31561 | -2/Protoforge | Spotted Decapitator 31561 | -2/Protoforge | Spotted Decapitator 31561 | -2/Protoforge | Spotted Decapitator 31562 | -2/Protoforge | Destroyed Decapitator 31562 | -2/Protoforge | Destroyed Decapitator 31573 | -2/Protoforge | Destroyed Decapitator 31623 | -2/Protoforge | Found Cep. Tiamat Rocket Array 31632 | -2/Protoforge | Found Faulty Cep. Smart ZDS 31757 | -2/Protoforge | System corruption reached 30% 31827 | -2/Protoforge | Destroyed Immortal 31849 | -2/Protoforge | Found Prototype Device 31852 | -2/Protoforge | Found Prototype Device 31855 | -2/Protoforge | Found Prototype Device 31857 | -2/Protoforge | Found Prototype Device 32226 | -2/Protoforge | Identified Cep. Weapon Articulator 32226 | -2/Protoforge | Identified Cep. Hypertargeting System 32226 | -2/Protoforge | Identified Cep. Countertargeting System (x2) 32226 | -2/Protoforge | Forge Plexus network access discovered 32243 | -2/Protoforge | Spotted Decapitator 32243 | -2/Protoforge | Spotted V888-i 32246 | -2/Protoforge | Destroyed Decapitator 32248 | -2/Protoforge | Spotted V069-h 32270 | -2/Protoforge | Identified Subatomic Replicator 32270 | -2/Protoforge | Used Subatomic Replicator to replicate Faulty Cep. Smart ZDS 32274 | -2/Protoforge | Identified Crosscalibrator 32288 | -2/Protoforge | Found Cep. Heavy Railcannon 32290 | -2/Protoforge | Found Cep. Helical Railcannon 32293 | -2/Protoforge | Found Cep. XC Strikerail 32303 | -2/Protoforge | Found Faulty Cep. Disintegration Ray 32306 | -2/Protoforge | Found Cep. XC Strikerail 32316 | -2/Protoforge | Found Cep. Deflector Sword 32357 | -2/Protoforge | Found Faulty Cep. Heavy Railcannon 32360 | -2/Protoforge | Found Faulty Cep. Plasma Driver 32369 | -2/Protoforge | Found Cep. Heavy Railcannon 32443 | -2/Protoforge | Spotted Decapitator 32443 | -2/Protoforge | Spotted Decapitator 32443 | -2/Protoforge | Spotted Decapitator 32443 | -2/Protoforge | Spotted Decapitator 32445 | -2/Protoforge | Destroyed Decapitator 32451 | -2/Protoforge | Destroyed Decapitator 32456 | -2/Protoforge | Destroyed Decapitator 32460 | -2/Protoforge | Destroyed Decapitator 32493 | -2/Protoforge | Found Cep. Matter Streamer 32495 | -2/Protoforge | Found Cep. Chromion Battery 32497 | -2/Protoforge | Found Cep. NT7 Matterbank 32511 | -2/Protoforge | Spotted V087-b 32511 | -2/Protoforge | Spotted V715-u 32517 | -2/Protoforge | Spotted V027-z 32518 | -2/Protoforge | Found Cep. Antigrav Storage Unit 32530 | -2/Protoforge | Destroyed V715-u 32539 | -2/Protoforge | Destroyed V087-b 32549 | -2/Protoforge | Destroyed V027-z 32552 | -2/Protoforge | Found Prototype Device 32557 | -2/Protoforge | Identified Cep. Antimissile System 32563 | -2/Protoforge | Found Prototype Device 32568 | -2/Protoforge | Found Cep. RG22 Armor 32576 | -2/Protoforge | Identified Exp. EM Shield 32613 | -2/Protoforge | Spotted Hotshot 32615 | -2/Protoforge | Spotted Hotshot 32618 | -2/Protoforge | Spotted Hotshot 32619 | -2/Protoforge | Destroyed Hotshot 32619 | -2/Protoforge | Destroyed Hotshot 32619 | -2/Protoforge | Spotted Hotshot 32624 | -2/Protoforge | Destroyed Hotshot 32625 | -2/Protoforge | Destroyed Hotshot 32636 | -2/Protoforge | Spotted Decapitator 32636 | -2/Protoforge | Spotted Decapitator 32692 | -2/Protoforge | Spotted Immortal 32692 | -2/Protoforge | Spotted Immortal 32696 | -2/Protoforge | Spotted V350-n 32698 | -2/Protoforge | Spotted V410-a 32712 | -2/Protoforge | Destroyed V410-a 32722 | -2/Protoforge | Destroyed Immortal 32731 | -2/Protoforge | Destroyed Immortal 32750 | -2/Protoforge | Spotted V824-v 32750 | -2/Protoforge | Spotted V085-d 32777 | -2/Protoforge | Warped through subspace 32778 | -2/Protoforge | Core integrity fell below 50% 32789 | -2/Protoforge | Destroyed V085-d 32833 | -2/Protoforge | First assault squad dispatched 32834 | -2/Protoforge | Destroyed V824-v 32846 | -2/Protoforge | Found Exp. Core Analyzer 32848 | -2/Protoforge | Found Adv. Powered Armor 32858 | -2/Protoforge | Found Prototype Processor 32858 | -2/Protoforge | Identified Spectral Analyzer 32892 | -2/Protoforge | Destroyed V350-n 32899 | -2/Protoforge | Found Prototype Device 32899 | -2/Protoforge | Identified Exp. Weapon Cycler 32915 | -2/Protoforge | Spotted AP7-3 32915 | -2/Protoforge | Spotted AP7-3 32937 | -2/Protoforge | Destroyed AP7-3 32952 | -2/Protoforge | Destroyed AP7-3 32962 | -2/Protoforge | Found Cep. Thermoelectric Network 32965 | -2/Protoforge | Found Cep. Thermoelectric Network 32968 | -2/Protoforge | Found Cep. Cloak Mesh 33026 | -2/Protoforge | Destroyed 10 combat bots 33119 | -2/Protoforge | Additional patrols dispatched to research labs 33128 | -2/Protoforge | Found Transdimensional Reconstructor 33228 | -2/Protoforge | Destroyed 9 combat bots 33304 | -2/Protoforge | Destroyed 9 combat bots 33421 | -2/Protoforge | Found Exp. Kinecellerator 33560 | -2/Protoforge | Destroyed 8 combat bots 33571 | -2/Protoforge | Spotted Hotshot 33596 | -2/Protoforge | High security lockdown imminent 33596 | -2/Protoforge | Destroyed Superfortress 33597 | -2/Protoforge | Spotted Executioner 33603 | -2/Protoforge | Destroyed Executioner 33615 | -2/Protoforge | Destroyed Hotshot 33662 | -2/Protoforge | Found Prototype Device 33662 | -2/Protoforge | Identified Thermal Barrier 33671 | -2/Protoforge | Destroyed 28 combat bots 33676 | -2/Protoforge | High security lockdown engaged 33676 | -2/Protoforge | Found Cep. Chromion Battery 33730 | -2/Protoforge | Found Faulty Cep. XC Strikerail 33733 | -2/Protoforge | Found Cep. XC Strikerail 33857 | -2/Protoforge | Spotted Investigator 33861 | -2/Protoforge | Destroyed Investigator 33891 | -2/Protoforge | Destroyed 44 combat bots 33966 | -2/Protoforge | Spotted Overlord 33968 | -2/Protoforge | Destroyed Overlord 33978 | -2/Protoforge | Found Exp. Weapon Cycler 33994 | -2/Protoforge | Spotted Striker 34001 | -2/Protoforge | Destroyed Striker 34020 | -2/Protoforge | Spotted Striker 34021 | -2/Protoforge | Destroyed Striker 34053 | -2/Protoforge | Destroyed 28 combat bots 34195 | -2/Protoforge | Spotted Executioner 34196 | -2/Protoforge | Core integrity fell below 20% 34199 | -2/Protoforge | Spotted Striker 34200 | -2/Protoforge | Destroyed Executioner 34200 | -2/Protoforge | Spotted Striker 34204 | -2/Protoforge | Destroyed Striker 34208 | -2/Protoforge | Destroyed Striker 34229 | -2/Protoforge | Destroyed 26 combat bots 34238 | -2/Protoforge | Spotted Striker 34244 | -2/Protoforge | Destroyed Striker 34266 | -2/Protoforge | Spotted Hotshot 34266 | -2/Protoforge | Entered Access 34266 | -1/Access | Evolved 2 slots: Utility x2 34267 | -1/Access | Identified exit to Command 34271 | -1/Access | Destroyed 7 combat bots 34381 | -1/Access | Destroyed 21 combat bots 34385 | -1/Access | High security lockdown imminent 34465 | -1/Access | High security lockdown engaged 34503 | -1/Access | Destroyed 10 combat bots 34554 | -1/Access | Destroyed 11 combat bots 34625 | -1/Access | Spotted Executioner 34625 | -1/Access | Spotted Striker 34626 | -1/Access | Destroyed Executioner 34627 | -1/Access | Destroyed Striker 34679 | -1/Access | Spotted Executioner 34683 | -1/Access | Destroyed Executioner 34689 | -1/Access | Destroyed Investigator 34711 | -1/Access | Destroyed 11 combat bots 34754 | -1/Access | Spotted Executioner 34754 | -1/Access | Destroyed Executioner 34755 | -1/Access | Spotted Executioner 34757 | -1/Access | Destroyed Executioner 34772 | -1/Access | Spotted Investigator 34773 | -1/Access | Destroyed Investigator 34808 | -1/Access | Destroyed 14 combat bots 34817 | -1/Access | Found Prototype Processor 34867 | -1/Access | Destroyed 10 combat bots 34971 | -1/Access | Spotted Striker 34971 | -1/Access | Spotted Executioner 34973 | -1/Access | Destroyed Executioner 34974 | -1/Access | Destroyed Striker 34977 | -1/Access | Destroyed Striker 35000 | -1/Access | Destroyed 11 combat bots 35020 | -1/Access | Spotted Striker 35027 | -1/Access | Destroyed Striker 35064 | -1/Access | Spotted Striker 35064 | -1/Access | Spotted Executioner 35065 | -1/Access | Destroyed Executioner 35069 | -1/Access | Destroyed Striker 35111 | -1/Access | Destroyed 7 combat bots 35226 | -1/Access | Destroyed Executioner 35229 | -1/Access | Spotted Executioner 35233 | -1/Access | Spotted Striker 35233 | -1/Access | Spotted Striker 35245 | -1/Access | Destroyed Executioner 35247 | -1/Access | Destroyed Striker 35248 | -1/Access | Destroyed Striker 35268 | -1/Access | Spotted Executioner 35272 | -1/Access | Destroyed Executioner 35272 | -1/Access | Destroyed Executioner 35293 | -1/Access | Destroyed 24 combat bots 35342 | -1/Access | Destroyed 7 combat bots 35402 | -1/Access | Spotted Executioner 35404 | -1/Access | Destroyed Executioner 35405 | -1/Access | Spotted Executioner 35409 | -1/Access | Destroyed Executioner 35530 | -1/Access | Spotted Executioner 35533 | -1/Access | Destroyed Executioner 35535 | -1/Access | Destroyed Striker 35540 | -1/Access | Spotted Striker 35540 | -1/Access | Destroyed Striker 35556 | -1/Access | Spotted Striker 35560 | -1/Access | Spotted Striker 35560 | -1/Access | Spotted Executioner 35560 | -1/Access | Destroyed Striker 35560 | -1/Access | Destroyed Executioner 35561 | -1/Access | Destroyed Striker 35576 | -1/Access | System corruption reached 10% 35576 | -1/Access | Spotted Executioner 35582 | -1/Access | Destroyed Executioner 35584 | -1/Access | Spotted Striker 35585 | -1/Access | Spotted Striker 35586 | -1/Access | Destroyed Striker 35589 | -1/Access | Spotted Executioner 35594 | -1/Access | Destroyed Executioner 35611 | -1/Access | Destroyed Striker 35624 | -1/Access | Found Prototype Device 35632 | -1/Access | Destroyed 35 combat bots 35644 | -1/Access | Build established: Scavenger-Construct 35925 | -1/Access | Identified Adv. Kinecellerator 35961 | -1/Access | Destroyed 7 combat bots 35965 | -1/Access | Destroyed Executioner 35965 | -1/Access | Spotted Executioner 35972 | -1/Access | Destroyed Executioner 36015 | -1/Access | Destroyed 7 combat bots 36067 | -1/Access | Destroyed Striker 36077 | -1/Access | Spotted Striker 36084 | -1/Access | Destroyed Striker 36160 | -1/Access | Destroyed 22 combat bots 36339 | -1/Access | Destroyed 9 combat bots 36373 | -1/Access | Spotted Executioner 36377 | -1/Access | Destroyed Executioner 36456 | -1/Access | Spotted Striker 36456 | -1/Access | Spotted Executioner 36459 | -1/Access | Destroyed Executioner 36465 | -1/Access | Destroyed Striker 36501 | -1/Access | Destroyed 7 combat bots 36510 | -1/Access | Spotted Striker 36510 | -1/Access | Spotted Striker 36515 | -1/Access | Destroyed Striker 36517 | -1/Access | Destroyed Striker 36648 | -1/Access | Spotted Striker 36648 | -1/Access | Spotted Striker 36651 | -1/Access | Destroyed Striker 36654 | -1/Access | Destroyed Striker 36661 | -1/Access | Spotted Striker 36663 | -1/Access | Destroyed Striker 36730 | -1/Access | Sterilization system engaged 36755 | -1/Access | Spotted B-99 Colossus 36755 | -1/Access | Spotted B-99 Colossus 36801 | -1/Access | Destroyed B-99 Colossus 36807 | -1/Access | Destroyed B-99 Colossus 36820 | -1/Access | Found Prototype Ballistic Gun 36821 | -1/Access | Identified Multirail 36926 | -1/Access | Energy Cycler disabled 36993 | -1/Access | Spotted Executioner 36996 | -1/Access | Spotted Striker 36996 | -1/Access | Spotted Striker 36996 | -1/Access | Spotted Executioner 37000 | -1/Access | Destroyed Executioner 37002 | -1/Access | Destroyed Executioner 37006 | -1/Access | Destroyed Striker 37006 | -1/Access | Destroyed Striker 37009 | -1/Access | Spotted Striker 37011 | -1/Access | Spotted Striker 37014 | -1/Access | Destroyed Striker 37015 | -1/Access | Destroyed Striker 37030 | -1/Access | Ambient heat levels rising (+10) 37036 | -1/Access | Destroyed 10 combat bots 37180 | -1/Access | Ambient heat levels rising (+10) 37330 | -1/Access | Ambient heat levels rising (+10) 37480 | -1/Access | Ambient heat levels rising (+10) 37572 | -1/Access | Spotted Striker 37573 | -1/Access | Destroyed Striker 37630 | -1/Access | Ambient heat levels rising (+10) 37634 | -1/Access | Destroyed 7 combat bots 37712 | -1/Access | Destroyed 16 combat bots 37780 | -1/Access | Ambient heat levels rising (+10) 37930 | -1/Access | Ambient heat levels rising (+10) 38080 | -1/Access | Ambient heat levels rising (+10) 38179 | -1/Access | Assembled infested ambush trap array 38230 | -1/Access | Ambient heat levels rising (+10) 38238 | -1/Access | Destroyed 11 combat bots 38290 | -1/Access | Found Exp. Core Analyzer 38293 | -1/Access | Found Adv. Kinecellerator 38380 | -1/Access | Ambient heat levels rising (+10) 38500 | -1/Access | Discovered new exit (range 5) 38530 | -1/Access | Ambient heat levels rising (+10) 38680 | -1/Access | Ambient heat levels rising (+10) 38830 | -1/Access | Ambient heat levels rising (+10) 38846 | -1/Access | Found Adv. Kinecellerator 38980 | -1/Access | Ambient heat levels rising (+10) 39130 | -1/Access | Ambient heat levels rising (+10) 39280 | -1/Access | Ambient heat levels rising (+10) 39430 | -1/Access | Ambient heat levels rising (+10) 39520 | -1/Access | Entered Command 39580 | -1/Command | Disengaged cave seal 39580 | -1/Command | Derelicts emerged from the dark tunnel 39580 | -1/Command | Welcomed Warlord to Command 39604 | -1/Command | High security lockdown imminent 39684 | -1/Command | High security lockdown engaged 39706 | -1/Command | Spotted Striker 39708 | -1/Command | Destroyed Striker 39730 | -1/Command | Spotted B-99 Colossus 39759 | -1/Command | Spotted Striker 39759 | -1/Command | Destroyed Striker 39770 | -1/Command | Spotted Executioner 39781 | -1/Command | Spotted Striker 39781 | -1/Command | Destroyed Striker 39817 | -1/Command | Destroyed 7 combat bots 39831 | -1/Command | Lost 8 allies 39860 | -1/Command | Spotted Striker 39860 | -1/Command | Spotted Striker 39864 | -1/Command | Spotted Investigator 39875 | -1/Command | Destroyed Striker 39895 | -1/Command | Destroyed B-99 Colossus 39918 | -1/Command | Destroyed 17 combat bots 39972 | -1/Command | Spotted Striker 39974 | -1/Command | Spotted Executioner 39974 | -1/Command | Spotted Executioner 39977 | -1/Command | Spotted Alpha 7 40005 | -1/Command | Lost 3 allies 40005 | -1/Command | Spotted Striker 40006 | -1/Command | Spotted Executioner 40007 | -1/Command | Destroyed Striker 40008 | -1/Command | Spotted Executioner 40010 | -1/Command | Spotted Striker 40014 | -1/Command | System corruption reached 30% 40017 | -1/Command | Destroyed HU-NT6(g) 40021 | -1/Command | Destroyed Striker 40048 | -1/Command | Lost 5 allies 40061 | -1/Command | Destroyed 20 combat bots 40192 | -1/Command | Spotted Striker 40193 | -1/Command | Spotted Striker 40193 | -1/Command | Spotted Executioner 40197 | -1/Command | Spotted Executioner 40201 | -1/Command | Destroyed Executioner 40203 | -1/Command | Spotted Striker 40204 | -1/Command | Destroyed Executioner 40225 | -1/Command | Destroyed 8 combat bots 40251 | -1/Command | Spotted Executioner 40256 | -1/Command | P-80 Master assimilated allied VF-GRO(L) 40256 | -1/Command | Spotted VF-GRO(L) 40260 | -1/Command | Spotted Striker 40262 | -1/Command | Destroyed Striker 40288 | -1/Command | Destroyed 8 combat bots 40497 | -1/Command | Spotted Executioner 40500 | -1/Command | Spotted Striker 40500 | -1/Command | Spotted Striker 40500 | -1/Command | Spotted Striker 40506 | -1/Command | Destroyed Striker 40506 | -1/Command | Destroyed Executioner 40515 | -1/Command | Warlord destroyed during the assault 40515 | -1/Command | Spotted Striker 40516 | -1/Command | Destroyed Striker 40517 | -1/Command | Spotted Alpha 7 40517 | -1/Command | Spotted Striker 40518 | -1/Command | Spotted Executioner 40522 | -1/Command | Destroyed Striker 40523 | -1/Command | Spotted Striker 40524 | -1/Command | Destroyed Striker 40527 | -1/Command | Destroyed Striker 40527 | -1/Command | Spotted Striker 40530 | -1/Command | Destroyed Striker 40534 | -1/Command | Destroyed Executioner 40534 | -1/Command | Destroyed Executioner 40534 | -1/Command | Destroyed Striker 40534 | -1/Command | Destroyed Executioner 40545 | -1/Command | Destroyed Executioner 40548 | -1/Command | Destroyed Alpha 7 40553 | -1/Command | Spotted Executioner 40560 | -1/Command | Destroyed Executioner 40562 | -1/Command | Found Prototype Ballistic Gun 40563 | -1/Command | Identified Multirail 40581 | -1/Command | Destroyed 35 combat bots 40801 | -1/Command | Core integrity fell below 50% 40803 | -1/Command | Destroyed Striker 40803 | -1/Command | Destroyed Investigator 40803 | -1/Command | Spotted Striker 40806 | -1/Command | Spotted Executioner 40809 | -1/Command | Spotted Striker 40810 | -1/Command | Destroyed Striker 40813 | -1/Command | Destroyed Executioner 40823 | -1/Command | Destroyed Striker 40844 | -1/Command | Destroyed 14 combat bots 41474 | -1/Command | Destroyed 8 combat bots 41541 | -1/Command | Spotted Executioner 41541 | -1/Command | Spotted Executioner 41541 | -1/Command | Spotted Executioner 41546 | -1/Command | Destroyed Executioner 41548 | -1/Command | Destroyed Executioner 41566 | -1/Command | Spotted B-99 Colossus 41584 | -1/Command | Destroyed B-99 Colossus 41588 | -1/Command | Destroyed Executioner 41592 | -1/Command | Spotted B-99 Colossus 41603 | -1/Command | Destroyed B-99 Colossus 41607 | -1/Command | Discovered new exit (range 8) 41611 | -1/Command | Found Exp. Core Analyzer 41878 | -1/Command | Phase Generator disabled 41936 | -1/Command | Spotted M Guard 41936 | -1/Command | Spotted M Guard 41936 | -1/Command | Spotted Combat Programmer 41938 | -1/Command | Spotted Combat Programmer 41957 | -1/Command | Destroyed Combat Programmer 41959 | -1/Command | Destroyed Combat Programmer 41999 | -1/Command | Destroyed M Guard 42015 | -1/Command | Destroyed M Guard 42015 | -1/Command | All MAIN.C guards destroyed 42029 | -1/Command | Found Corrupted Prototype Energy Cannon 42032 | -1/Command | Found Corrupted Prototype Protection 42037 | -1/Command | Found Corrupted Prototype Device 42037 | -1/Command | Identified AEGIS Remote Shield 42043 | -1/Command | Found Corrupted AEGIS Remote Shield 42050 | -1/Command | Found Corrupted Prototype Launcher 42140 | -1/Command | Found Unknown Protection 42140 | -1/Command | Identified Hvy. Reactive Plating 42167 | -1/Command | Met MAIN.C 42177 | -1/Command | Destroyed MAIN.C Shell 42177 | -1/Command | 0b10 Conduit disabled 42178 | -1/Command | MAIN.C activated Command garrisons 42191 | -1/Command | Destroyed MAIN.C 42194 | -1/Command | Identified Hvy. Regenerative Plating 42194 | -1/Command | Identified Cld. Nova Cannon 42194 | -1/Command | Identified Adv. Micro-nuke Launcher 42194 | -1/Command | Discovered new exit (range 33) 42194 | -1/Command | Discovered new exit (range 110) 42194 | -1/Command | Extracted map data and part IDs from MAIN.C's data core 42202 | -1/Command | Spotted B-99 Colossus 42212 | -1/Command | Destroyed B-99 Colossus 42236 | -1/Command | Found Exp. System Purifier 43138 | -1/Command | Found AEGIS Remote Shield 43159 | -1/Command | Found Exp. Force Field 43488 | -1/Command | Found Adv. Powered Armor 43521 | -1/Command | Found Quantum Capacitor 45054 | -1/Command | Found Corrupted Thermal Barrier 45606 | -1/Command | Warped through subspace to slip node 45606 | -1/Command | Discovered new exit (range 5) 45611 | -1/Command | Entered Access_0 45613 | -1/Access_0 | Met Architect 45621 | -1/Access_0 | Destroyed A8 45650 | -1/Access_0 | Architect warped through subspace 45703 | -1/Access_0 | Architect warped through subspace 45721 | -1/Access_0 | Found Integrated Dissipator 45722 | -1/Access_0 | Installed Integrated Dissipator, increased core heat dissipation (+20) 45756 | -1/Access_0 | A6 warped into view 45774 | -1/Access_0 | Destroyed A6 45794 | -1/Access_0 | Architect warped through subspace 45868 | -1/Access_0 | Architect warped through subspace 45916 | -1/Access_0 | Architect warped through subspace 45948 | -1/Access_0 | Architect warped through subspace 45972 | -1/Access_0 | Core integrity fell below 20% 45974 | -1/Access_0 | A5 warped into view 45976 | -1/Access_0 | Subspace Access Node disabled 45993 | -1/Access_0 | Destroyed A5 46001 | -1/Access_0 | Architect warped through subspace 46053 | -1/Access_0 | Architect warped through subspace 46089 | -1/Access_0 | Architect warped through subspace 46170 | -1/Access_0 | Architect warped through subspace 46213 | -1/Access_0 | Destroyed by Architect with Modified Sigix Sheargun Last Messages --------------- 46180_ Acquired 13 matter. 46180_ Acquired 7 matter. 46194_ System corrupted: Component data lost. 46202_ Workstation disabled. 46202_ Slug penetrates Wall. 46206_ Quantum Shear penetrates Wall. 46206_ Slug penetrates Wall. 46207_ Slug penetrates Architect. 46207_ Slug penetrates Wall. 46208_ Quantum Shear penetrates Wall. 46209_ Scrap Engine modifies Biometal Exoskeleton: Max Integrity -178, Coverage -29, +Special Renamed Treaded Siege-Biometal Exoskeleton. 46209_ System corrupted: Shotgun Kinetic Neutralizer Con/C failed to cycle. 46210_ Architect knocked back. 46210_ Slug penetrates Architect. 46212_ Architect knocked back. 46212_ Slug penetrates Architect. 46213_ Penetrated by Quantum Shear. Map ----- +----------------------------------------------------+ | ?????????????????????????????????????????????????? | | ?????????????????????????????????????????????????? | | ?????????????????????????????????????????????????? | | ?????????????????????????????????????????????????? | | ?????????????????????????????????????????????????? | | ?????????????????????????????????????????????????? | | ?????????????????????????????????????????????????? | | ?????????????????????????????????????????????????? | | ?????????????????????????????????????????????????? | | ?????????????????????????????????????????????????? | | ?????????????????????????????????????????????????? | | ?????????????????????????????????????????????????? | | ?????????????????????????????????????????????????? | | ?????????????????????????????????????????????????? | | ?????????????????????????????????????????????????? | | ?????????????????????????????????????????????????? | | ??????????????????????###????????????????????????? | | ??????????????????????# #????????????????????????? | | ??????????????????????# #????????????????????????? | | ??????????????????????#;#????????????????????????? | | ??????????????????????"!"????????????????????????? | | ????????????????????#"" ""???????????????????????? | | ????????????????????# "##?????????????????????? | | ???????????????????## #;##????????????????????? | | ??????????????????## ;;#######??????????????? | | ??????????????????#; @ ;# #??????????????? | | ??????????????????## #??????????????? | | ??????????????????## ;;;; ##??????????????? | | ?????????????????## ;; ##????####????##?? | | ???????????????### ##?????# ?##?# ##? | | ???????????????# #??##### ## ## #? | | ???????????????## #??# ""#""""""### | | ????????????????### ## #??# % | | ??????????????????## ## #???# % | | ???????????????????## ;### #???## %"" ###### | | ????????????????????# ;#?# #???#" " " #????? | | ????????????????????# ; ;#?# #??## """ ###??? | | ????????????????????###; #### #### ! "#### | | ??????????????????????# % # | | ?????????????????##???#; #####" """####### | | ????????????????## ??#% % ###"" " ##?????? | | ????????????????# ### 0 ##" "" "##??????? | | ????????????????# % ## "" #???????? | | ????????????????# #" "" #?##????? | | ????? ??????????# """% """# " #????? | | ????? ?????????# ## "" """"" " #????? | | ???? ????????????#; % %% % ####????? | | ????? ????????????# % #???????? | | ???????# #???????# "" """#####???????? | | ????????# ??#?# """ "" #??????????? | +----------------------------------------------------+ Best States ------------- Heat Dissipation 136 Coolant Potential 120 Energy Generation 123 Energy Capacity 4669 Matter Stores 1050 Matter Capacity 1050 Sight Range 24 Robot Scan Range 19 Terrain Scan Range 24 Terrain Scan Density 10 Jamming Range 16 Cloak Strength 6 EM Shielding 4 Armor Coverage 1200 Resistance: KI 40 Resistance: EM 75 Core Shielding 90 Utility Shielding 66 Point Defense Rating 480 Projectile Deflection 15 Weapon Cycling 30 Phase Shifting 15 Evasion (%) 87 Targeting Accuracy 30 Core Analysis 8 Recoil Reduction 6 Energy Filtering 50 Kinecelleration 66 Offensive Hacking 14 Defensive Hacking 20 Authchip Count 1 Item Schematics ----------------- Weapon Mount | -6/Factory | Hacked Combat Drone Bay | -6/Data Miner | Free Lgt. Regenerative Plating | -6/Data Miner | Free Enh. Armored Leg | -6/Data Miner | Free Imp. Thermal Defense Suite | -6/Data Miner | Free Enh. Force Rifle | -6/Data Miner | Free Imp. Linear Gravjet | -6/Data Miner | Free Imp. Point Defense System | -6/Data Miner | Free Hardcell Cannon | -6/Data Miner | Free Hvy. Siege Treads | -6/Data Miner | Free Imp. Gyrokinetic Inverter | -6/Data Miner | Free Adv. Point Defense System | -6/Data Miner | Free Assault Drone Bay | -5/Zhirov | Free Exp. Optical Array | -5/Zhirov | Free Exp. Heat Sink | -5/Zhirov | Free Imp. Arc Thrower | -5/Zhirov | Free Enh. Nova Cannon | -4/Factory | Hacked Imp. Energy Well | -2/Testing | Archive Enh. Gamma Bomb Array | -2/Testing | Archive Adv. KE Penetrator | -2/Testing | Archive Cld. Phase Cannon | -2/Testing | Archive Hvy. Dispersion Rifle | -2/Testing | Archive Exp. Cloaking Device | -2/Testing | Archive Cld. Impulse Thruster | -2/Protoforge | Archive Exp. Melee Analysis Suite | -2/Protoforge | Archive Imp. Q-thruster | -2/Protoforge | Archive Exp. Thermal Generator | -2/Protoforge | Archive Imp. Matter Neutralizer | -2/Protoforge | Archive Hvy. Wave Gun | -2/Protoforge | Archive Com. Particle Reactor | -2/Protoforge | Archive Cld. Antigrav System | -2/Protoforge | Archive Hds. Centrium Leg | -2/Protoforge | Archive Robot Schematics ------------------ S-27 Virus | -6/Data Miner | Free B-60 Warrior | -6/Data Miner | Free R-10 Processor | -6/Data Miner | Free A-15 Conveyor | -6/Data Miner | Free M-30 Cleanser | -6/Data Miner | Free B-74 Champion | -2/Testing | Archive K-01 Serf | -2/Testing | Archive G-67 Veteran | -2/Protoforge | Archive A-27 Freighter | -2/Protoforge | Archive S-43 Plague | -2/Protoforge | Archive H-77 Assassin | -2/Protoforge | Archive Fabricated ------------ Weapon Mount | x2 | -6/Factory | Authchip Cmb. Antigrav System | x2 | -5/Factory | Preloaded Adv. Heavy Siege Treads | x1 | -4/Factory | Preloaded Repaired ---------- Seismic Detector | 20% | -8/Materials Arm. Treads | 42% | -8/Storage Lgt. Treads | 30% | -8/Storage Lgt. Treads | 32% | -8/Storage Hrd. Medium Armor Plating | 41% | -8/Storage Hrd. Heavy Armor Plating | 43% | -5/Factory Alien Tech Used ----------------- Integrated Reactor Phase Armor Subatomic Replicator Transdimensional Reconstructor Integrated Dissipator Achievements -------------- None Challenges ------------ None Game ------ Seed BoreRemoteTurbovents Manual? 0 Play Time 11:59:18 Cumulative 572.5 hours Start 2025.08.04 @ 12:58:32 End 2025.08.06 @ 14:13:20 Sessions 23 Manual Loads 0 Difficulty Rogue Special Mode None Game No. 242 Rogue 242 Adventurer 0 Explorer 0 Win Type - Total 27 Types 9/4/7/2/1/0/1/1/1/1 Lore% 92 Gallery% 87 Achievement% 81 Wizard Run 0 Options --------- Layout 0 ASCII 0 Keyboard 0 Movement Arrows Keybinds 0 Fullscreen 2 Font 18/SmallcapsGlow Map View 76x50 Zoom Use 0% Tactical HUD 1 Map Filters NONE Filters NONE Steam 1 RUN: b9add145-709c-4dbb-bb09-9362f0effbec